Body Name,Body,Service Label,Service Code,Service Division ,Service Division Code,Organisational Unit,Expenditure Category - SeRCOP,Expenditure Code - SeRCOP,Expenditure Category - ProClass,Expenditure Code - ProClass,SeRCOP Detailed Expenditure Type,SeRCOP Detailed Expenditure Code,Date,Transaction Number,Amount,Capital and Revenue,Supplier Name,Supplier ID
Fareham Borough Council,http://statistics.data.gov.uk/id/local-authority/24UE,OTHER REVENUE ACCOUNTS,RV,NON WORK GROUP HOLDING ACCOUNT,RV18,DEPT OF SUPPORT SERVICES,SUPPLIES & SERVICES,4,Information Communication Technology,27,ICT DATA LINES,4535,21/05/2021,667002,"-2,087.21",Revenue,VODAFONE LIMITED,01471587
Fareham Borough Council,http://statistics.data.gov.uk/id/local-authority/24UE,OTHER REVENUE ACCOUNTS,RV,NON WORK GROUP HOLDING ACCOUNT,RV18,DEPT OF SUPPORT SERVICES,SUPPLIES & SERVICES,4,Information Communication Technology,27,ICT SOFTWARE LICENCES,4530,14/05/2021,691402,"-4,897.11",Revenue,TIMICO LTD,04841830
Fareham Borough Council,http://statistics.data.gov.uk/id/local-authority/24UE,OTHER REVENUE ACCOUNTS,RV,NON WORK GROUP HOLDING ACCOUNT,RV18,DEPT OF SUPPORT SERVICES,SUPPLIES & SERVICES,4,Information Communication Technology,27,ICT SOFTWARE LICENCES,4530,14/05/2021,691403,"1,856.03",Revenue,TIMICO LTD,04841830
Fareham Borough Council,http://statistics.data.gov.uk/id/local-authority/24UE,OTHER REVENUE ACCOUNTS,RV,NON WORK GROUP HOLDING ACCOUNT,RV18,DEPT OF SUPPORT SERVICES,SUPPLIES & SERVICES,4,Information Communication Technology,27,ICT SOFTWARE LICENCES,4530,14/05/2021,691404,"2,417.27",Revenue,TIMICO LTD,04841830
Fareham Borough Council,http://statistics.data.gov.uk/id/local-authority/24UE,HOUSING REVENUE ACCOUNT,BV06,OTHER COMMUNAL SERVICES,5034,DEPT OF DEPUTY CHIEF EXECUTIVE,SUPPLIES & SERVICES,4,Housing Management,25,FURNITURE & EQUIPT.-RENTS/LSES,4040,14/05/2021,709062,"1,007.73",Revenue,JLA TOTAL CARE LTD,02951461
Fareham Borough Council,http://statistics.data.gov.uk/id/local-authority/24UE,OTHER REVENUE ACCOUNTS,RV,NON WORK GROUP HOLDING ACCOUNT,RV18,STREETSCENE,SUPPLIES & SERVICES,4,Vehicle Management,38,TOOLS & EQUIPMENT,4002,07/05/2021,710917,633.00,Revenue,CONSOLIDATED DISTRIBUTION HOLDINGS LTD,12128837
Fareham Borough Council,http://statistics.data.gov.uk/id/local-authority/24UE,ENVIRONMENT AND REGULATORY SER,BV03,STREET CLEANSING,BV03F,STREETSCENE,TRANSPORT RELATED EXPENDITURE,3,Vehicle Management,38,ROUTINE REPAIRS VEHICLES/PLANT,3010,07/05/2021,711520,635.00,Revenue,SOLENT TRUCK PARTS LTD,3726877
Fareham Borough Council,http://statistics.data.gov.uk/id/local-authority/24UE,CENTRAL SERVICES,BV07,CENTRAL SERVICES TO THE PUBLIC,BV07B,DEPT OF SUPPORT SERVICES,PREMISES RELATED EXPENDITURE,2,Facilities & Management Services,19,RENTS - GENERAL PAYABLE,2200,07/05/2021,711525,516.00,Revenue,LOCKSHEATH FREE CHURCH CC,
Fareham Borough Council,http://statistics.data.gov.uk/id/local-authority/24UE,CENTRAL SERVICES,BV07,CENTRAL SERVICES TO THE PUBLIC,BV07B,DEPT OF SUPPORT SERVICES,SUPPLIES & SERVICES,4,Facilities & Management Services,19,POSTAGES,4500,05/05/2021,711526,505.50,Revenue,FINANCIAL DATA MANAGEMENT LTD,2827644
Fareham Borough Council,http://statistics.data.gov.uk/id/local-authority/24UE,OTHER REVENUE ACCOUNTS,RV,NON WORK GROUP HOLDING ACCOUNT,RV18,DEPT OF SUPPORT SERVICES,SUPPLIES & SERVICES,4,Human Resources,26,GRANTS AND SUBSCRIPTIONS,4700,07/05/2021,711527,"5,470.00",Revenue,SOUTH EAST EMPLOYERS,
Fareham Borough Council,http://statistics.data.gov.uk/id/local-authority/24UE,CAPITAL PROGRAMME - OTHER SERVICES,CP,CAPITAL VEHICLE & PLANT,CP23,CAPITAL - STREETSCENE CAPITAL,TRANSPORT RELATED EXPENDITURE,3,Unclassified,,PURCHASE OF VEHICLES,3000,05/05/2021,711531,-600.00,Capital,SAI LTD,
Fareham Borough Council,http://statistics.data.gov.uk/id/local-authority/24UE,CAPITAL PROGRAMME - OTHER SERVICES,CP,CAPITAL VEHICLE & PLANT,CP23,CAPITAL - STREETSCENE CAPITAL,TRANSPORT RELATED EXPENDITURE,3,Unclassified,,PURCHASE OF VEHICLES,3000,05/05/2021,711531,600.00,Capital,SAI LTD,
Fareham Borough Council,http://statistics.data.gov.uk/id/local-authority/24UE,CAPITAL PROGRAMME - OTHER SERVICES,CP,CAPITAL VEHICLE & PLANT,CP23,CAPITAL - STREETSCENE CAPITAL,TRANSPORT RELATED EXPENDITURE,3,Unclassified,,PURCHASE OF VEHICLES,3000,05/05/2021,711531,"19,066.67",Capital,SAI LTD,
Fareham Borough Council,http://statistics.data.gov.uk/id/local-authority/24UE,OTHER REVENUE ACCOUNTS,RV,CONTRACT SERVICES D.S.O.,RV14,DEPT of STRATEGIC PLANNING and ENVIRONMENT,SUPPLIES & SERVICES,4,Consultancy,15,STRUCTURAL ENGINEERS FEES,4405,07/05/2021,711620,"4,550.00",Revenue,RUCK CONSULTANCY LIMITED,9335936
Fareham Borough Council,http://statistics.data.gov.uk/id/local-authority/24UE,HOUSING REVENUE ACCOUNT,BV06,GENERAL ADMINISTRATION EXPENSE,5021,DEPT OF DEPUTY CHIEF EXECUTIVE,SUPPLIES & SERVICES,4,Financial Services,20,PAYMENT CARD CHARGES,4411,07/05/2021,711634,"1,283.34",Revenue,ALLPAY LIMITED ** DIRECT DEBIT **,02933191
Fareham Borough Council,http://statistics.data.gov.uk/id/local-authority/24UE,CAPITAL PROGRAMME - HOUSING SERVICES,CP,NEW HOUSE BUILDING,CP10,CAPITAL - FAREHAM HOUSING CAPITAL,PREMISES RELATED EXPENDITURE,2,"Works - Construction, Repair & Maintenance",39,BUILDING CONSTRUCTION,2602,07/05/2021,711644,"106,762.52",Capital,F E CHASE & SON LTD,01819097
Fareham Borough Council,http://statistics.data.gov.uk/id/local-authority/24UE,OTHER REVENUE ACCOUNTS,RV,NON WORK GROUP HOLDING ACCOUNT,RV18,DEPT of STRATEGIC PLANNING and ENVIRONMENT,SUPPLIES & SERVICES,4,Domestic Goods,16,FURNITURE & EQUIPT. PURCHASES,4000,07/05/2021,711646,"2,800.00",Revenue,AQUA COOLING HIRE LIMITED,11342949
Fareham Borough Council,http://statistics.data.gov.uk/id/local-authority/24UE,FINANCING & INVESTMENT I&E,BVB02,INVESTMENT PROPERTIES,BVB170,DEPT of STRATEGIC PLANNING and ENVIRONMENT,PREMISES RELATED EXPENDITURE,2,Housing Management,25,SERVICE CHARGES,2260,07/05/2021,711652,714.60,Revenue,VIVID HOUSING LTD,IP20761R
Fareham Borough Council,http://statistics.data.gov.uk/id/local-authority/24UE,OTHER REVENUE ACCOUNTS,RV,NON WORK GROUP HOLDING ACCOUNT,RV18,DEPT of STRATEGIC PLANNING and ENVIRONMENT,PREMISES RELATED EXPENDITURE,2,Facilities & Management Services,19,R & M OF BUILDINGS,2000,07/05/2021,711653,"1,225.79",Revenue,HONEYWELL CONTROL SYSTEMS LTD,00217803
Fareham Borough Council,http://statistics.data.gov.uk/id/local-authority/24UE,OTHER REVENUE ACCOUNTS,RV,NON WORK GROUP HOLDING ACCOUNT,RV18,DEPT of STRATEGIC PLANNING and ENVIRONMENT,SUPPLIES & SERVICES,4,Environmental Services,18,TIPPING / INCINERATOR FEES,4425,07/05/2021,711657,564.00,Revenue,ZEBRA WASTE SKIP HIRE,01506942
Fareham Borough Council,http://statistics.data.gov.uk/id/local-authority/24UE,CAPITAL PROGRAMME - OTHER SERVICES,CP,CAPITAL PROPERTY SERVICES,CP23,CAPITAL - FINANCE & RESOURCES CAPITAL,PREMISES RELATED EXPENDITURE,2,Building Construction Materials,10,BUILDING CONSTRUCTION,2602,07/05/2021,711659,"505,295.98",Capital,MILDREN CONSTRUCTION LTD,02136748
Fareham Borough Council,http://statistics.data.gov.uk/id/local-authority/24UE,ENVIRONMENT AND REGULATORY SER,BV03,CEMETERIES CREM & MORTUARY,BV03A,STREETSCENE,PREMISES RELATED EXPENDITURE,2,Utilities,37,R & M OF BUILDINGS,2000,07/05/2021,711663,20.13,Revenue,LIBERTY GAS GROUP LTD,04242416
Fareham Borough Council,http://statistics.data.gov.uk/id/local-authority/24UE,FINANCING & INVESTMENT I&E,BVB02,INVESTMENT PROPERTIES,BVB170,DEPT of STRATEGIC PLANNING and ENVIRONMENT,PREMISES RELATED EXPENDITURE,2,Utilities,37,R & M OF BUILDINGS,2000,07/05/2021,711663,109.27,Revenue,LIBERTY GAS GROUP LTD,04242416
Fareham Borough Council,http://statistics.data.gov.uk/id/local-authority/24UE,CULTURAL AND RELATED SERVICES,BV09,RECREATION AND SPORT,BV09B,STREETSCENE,PREMISES RELATED EXPENDITURE,2,Utilities,37,R & M OF BUILDINGS,2000,07/05/2021,711663,263.12,Revenue,LIBERTY GAS GROUP LTD,04242416
Fareham Borough Council,http://statistics.data.gov.uk/id/local-authority/24UE,CULTURAL AND RELATED SERVICES,BV09,CULTURE AND HERITAGE,BV09A,DEPT OF LEISURE & COMMUNITY,PREMISES RELATED EXPENDITURE,2,Utilities,37,R & M OF BUILDINGS,2000,07/05/2021,711663,69.02,Revenue,LIBERTY GAS GROUP LTD,04242416
Fareham Borough Council,http://statistics.data.gov.uk/id/local-authority/24UE,CULTURAL AND RELATED SERVICES,BV09,RECREATION AND SPORT,BV09B,DEPT OF LEISURE & COMMUNITY,PREMISES RELATED EXPENDITURE,2,Utilities,37,R & M OF BUILDINGS,2000,07/05/2021,711663,40.27,Revenue,LIBERTY GAS GROUP LTD,04242416
Fareham Borough Council,http://statistics.data.gov.uk/id/local-authority/24UE,FINANCING & INVESTMENT I&E,BVB02,INVESTMENT PROPERTIES,BVB170,DEPT OF LEISURE & COMMUNITY,PREMISES RELATED EXPENDITURE,2,Utilities,37,R & M OF BUILDINGS,2000,07/05/2021,711663,40.27,Revenue,LIBERTY GAS GROUP LTD,04242416
Fareham Borough Council,http://statistics.data.gov.uk/id/local-authority/24UE,CAPITAL PROGRAMME - HOUSING SERVICES,CP,RENOVATION OF L.A. DWELLINGS,CP10,CAPITAL - FAREHAM HOUSING CAPITAL,PREMISES RELATED EXPENDITURE,2,Utilities,37,R & M OF BUILDINGS,2000,07/05/2021,711663,"6,454.43",Capital,LIBERTY GAS GROUP LTD,04242416
Fareham Borough Council,http://statistics.data.gov.uk/id/local-authority/24UE,HOUSING REVENUE ACCOUNT,BV06,RESPONSIVE & VOID MAINTENANCE,5901,DEPT OF DEPUTY CHIEF EXECUTIVE,PREMISES RELATED EXPENDITURE,2,Utilities,37,GAS SERVICING & ASSOC REPAIRS,2029,07/05/2021,711663,"21,342.60",Revenue,LIBERTY GAS GROUP LTD,04242416
Fareham Borough Council,http://statistics.data.gov.uk/id/local-authority/24UE,OTHER REVENUE ACCOUNTS,RV,NON WORK GROUP HOLDING ACCOUNT,RV18,DEPT of STRATEGIC PLANNING and ENVIRONMENT,PREMISES RELATED EXPENDITURE,2,Utilities,37,R & M OF FIXED PLANT,2040,07/05/2021,711663,252.32,Revenue,LIBERTY GAS GROUP LTD,04242416
Fareham Borough Council,http://statistics.data.gov.uk/id/local-authority/24UE,OTHER REVENUE ACCOUNTS,RV,NON WORK GROUP HOLDING ACCOUNT,RV18,DEPT of STRATEGIC PLANNING and ENVIRONMENT,PREMISES RELATED EXPENDITURE,2,Utilities,37,R & M OF FIXED PLANT,2040,07/05/2021,711663,69.02,Revenue,LIBERTY GAS GROUP LTD,04242416
Fareham Borough Council,http://statistics.data.gov.uk/id/local-authority/24UE,HIGHWAYS ROADS AND TRANSPORT,BV12,PUBLIC TRANSPORT,BV12E,DEPT OF LEISURE & COMMUNITY,SUPPLIES & SERVICES,4,Social Community Care Supplies & Services,32,GRANTS AND SUBSCRIPTIONS,4700,07/05/2021,711664,"3,675.00",Revenue,COMMUNITY FIRST FAREHAM,03181037
Fareham Borough Council,http://statistics.data.gov.uk/id/local-authority/24UE,GENERAL FUND HOUSING,BV05,HOUSING ADVICE,BV05C,DEPT OF DEPUTY CHIEF EXECUTIVE,SUPPLIES & SERVICES,4,Unclassified,,LOCAL ASSISTANCE PAYMENT,4727,07/05/2021,711665,700.00,Revenue,redacted data,
Fareham Borough Council,http://statistics.data.gov.uk/id/local-authority/24UE,CAPITAL PROGRAMME - HOUSING SERVICES,CP,RENOVATION OF L.A. DWELLINGS,CP10,CAPITAL - FAREHAM HOUSING CAPITAL,PREMISES RELATED EXPENDITURE,2,Information Communication Technology,27,R & M ALARM SPEECH SYSTEMS,2027,07/05/2021,711667,-565.39,Capital,TUNSTALL HEALTHCARE (UK) LTD,01332249
Fareham Borough Council,http://statistics.data.gov.uk/id/local-authority/24UE,CAPITAL PROGRAMME - HOUSING SERVICES,CP,RENOVATION OF L.A. DWELLINGS,CP10,CAPITAL - FAREHAM HOUSING CAPITAL,PREMISES RELATED EXPENDITURE,2,Information Communication Technology,27,R & M ALARM SPEECH SYSTEMS,2027,07/05/2021,711668,-606.36,Capital,TUNSTALL HEALTHCARE (UK) LTD,01332249
Fareham Borough Council,http://statistics.data.gov.uk/id/local-authority/24UE,ENVIRONMENT AND REGULATORY SER,BV03,CEMETERIES CREM & MORTUARY,BV03A,STREETSCENE,PREMISES RELATED EXPENDITURE,2,Utilities,37,R & M OF BUILDINGS,2000,07/05/2021,711670,20.13,Revenue,LIBERTY GAS GROUP LTD,04242416
Fareham Borough Council,http://statistics.data.gov.uk/id/local-authority/24UE,FINANCING & INVESTMENT I&E,BVB02,INVESTMENT PROPERTIES,BVB170,DEPT of STRATEGIC PLANNING and ENVIRONMENT,PREMISES RELATED EXPENDITURE,2,Utilities,37,R & M OF BUILDINGS,2000,07/05/2021,711670,109.27,Revenue,LIBERTY GAS GROUP LTD,04242416
Fareham Borough Council,http://statistics.data.gov.uk/id/local-authority/24UE,CULTURAL AND RELATED SERVICES,BV09,RECREATION AND SPORT,BV09B,STREETSCENE,PREMISES RELATED EXPENDITURE,2,Utilities,37,R & M OF BUILDINGS,2000,07/05/2021,711670,140.92,Revenue,LIBERTY GAS GROUP LTD,04242416
Fareham Borough Council,http://statistics.data.gov.uk/id/local-authority/24UE,CULTURAL AND RELATED SERVICES,BV09,CULTURE AND HERITAGE,BV09A,DEPT OF LEISURE & COMMUNITY,PREMISES RELATED EXPENDITURE,2,Utilities,37,R & M OF BUILDINGS,2000,07/05/2021,711670,"1,285.67",Revenue,LIBERTY GAS GROUP LTD,04242416
Fareham Borough Council,http://statistics.data.gov.uk/id/local-authority/24UE,CULTURAL AND RELATED SERVICES,BV09,RECREATION AND SPORT,BV09B,DEPT OF LEISURE & COMMUNITY,PREMISES RELATED EXPENDITURE,2,Utilities,37,R & M OF BUILDINGS,2000,07/05/2021,711670,40.27,Revenue,LIBERTY GAS GROUP LTD,04242416
Fareham Borough Council,http://statistics.data.gov.uk/id/local-authority/24UE,FINANCING & INVESTMENT I&E,BVB02,INVESTMENT PROPERTIES,BVB170,DEPT OF LEISURE & COMMUNITY,PREMISES RELATED EXPENDITURE,2,Utilities,37,R & M OF BUILDINGS,2000,07/05/2021,711670,236.89,Revenue,LIBERTY GAS GROUP LTD,04242416
Fareham Borough Council,http://statistics.data.gov.uk/id/local-authority/24UE,CAPITAL PROGRAMME - HOUSING SERVICES,CP,RENOVATION OF L.A. DWELLINGS,CP10,CAPITAL - FAREHAM HOUSING CAPITAL,PREMISES RELATED EXPENDITURE,2,Utilities,37,R & M OF BUILDINGS,2000,07/05/2021,711670,"16,956.20",Capital,LIBERTY GAS GROUP LTD,04242416
Fareham Borough Council,http://statistics.data.gov.uk/id/local-authority/24UE,HOUSING REVENUE ACCOUNT,BV06,RESPONSIVE & VOID MAINTENANCE,5901,DEPT OF DEPUTY CHIEF EXECUTIVE,PREMISES RELATED EXPENDITURE,2,Utilities,37,GAS SERVICING & ASSOC REPAIRS,2029,07/05/2021,711670,"22,375.44",Revenue,LIBERTY GAS GROUP LTD,04242416
Fareham Borough Council,http://statistics.data.gov.uk/id/local-authority/24UE,OTHER REVENUE ACCOUNTS,RV,NON WORK GROUP HOLDING ACCOUNT,RV18,DEPT of STRATEGIC PLANNING and ENVIRONMENT,PREMISES RELATED EXPENDITURE,2,Utilities,37,R & M OF FIXED PLANT,2040,07/05/2021,711670,333.65,Revenue,LIBERTY GAS GROUP LTD,04242416
Fareham Borough Council,http://statistics.data.gov.uk/id/local-authority/24UE,OTHER REVENUE ACCOUNTS,RV,NON WORK GROUP HOLDING ACCOUNT,RV18,DEPT of STRATEGIC PLANNING and ENVIRONMENT,PREMISES RELATED EXPENDITURE,2,Utilities,37,R & M OF FIXED PLANT,2040,07/05/2021,711670,200.69,Revenue,LIBERTY GAS GROUP LTD,04242416
Fareham Borough Council,http://statistics.data.gov.uk/id/local-authority/24UE,CENTRAL SERVICES,BV07,CENTRAL SERVICES TO THE PUBLIC,BV07B,DEPT OF DEPUTY CHIEF EXECUTIVE,SUPPLIES & SERVICES,4,Financial Services,20,SPECIAL EXPENDITURE,4999,07/05/2021,711717,698.65,Revenue,ALLPAY LIMITED ** DIRECT DEBIT **,02933191
Fareham Borough Council,http://statistics.data.gov.uk/id/local-authority/24UE,CENTRAL SERVICES,BV07,CENTRAL SERVICES TO THE PUBLIC,BV07B,DEPT OF DEPUTY CHIEF EXECUTIVE,SUPPLIES & SERVICES,4,Financial Services,20,BANK CHARGES,4954,07/05/2021,711717,755.13,Revenue,ALLPAY LIMITED ** DIRECT DEBIT **,02933191
Fareham Borough Council,http://statistics.data.gov.uk/id/local-authority/24UE,GENERAL FUND HOUSING,BV05,HOMELESSNESS,BV05F,DEPT OF DEPUTY CHIEF EXECUTIVE,SUPPLIES & SERVICES,4,Social Community Care Supplies & Services,32,BED & BREAKFAST EXPENSES,4943,07/05/2021,711727,560.00,Revenue,SOUTH SEAA INN,
Fareham Borough Council,http://statistics.data.gov.uk/id/local-authority/24UE,GENERAL FUND HOUSING,BV05,HOMELESSNESS,BV05F,DEPT OF DEPUTY CHIEF EXECUTIVE,SUPPLIES & SERVICES,4,Social Community Care Supplies & Services,32,BED & BREAKFAST EXPENSES,4943,07/05/2021,711729,560.00,Revenue,SOUTH SEAA INN,
Fareham Borough Council,http://statistics.data.gov.uk/id/local-authority/24UE,GENERAL FUND HOUSING,BV05,HOMELESSNESS,BV05F,DEPT OF DEPUTY CHIEF EXECUTIVE,SUPPLIES & SERVICES,4,Social Community Care Supplies & Services,32,BED & BREAKFAST EXPENSES,4943,07/05/2021,711732,560.00,Revenue,SOUTH SEAA INN,
Fareham Borough Council,http://statistics.data.gov.uk/id/local-authority/24UE,GENERAL FUND HOUSING,BV05,HOMELESSNESS,BV05F,DEPT OF DEPUTY CHIEF EXECUTIVE,SUPPLIES & SERVICES,4,Social Community Care Supplies & Services,32,BED & BREAKFAST EXPENSES,4943,07/05/2021,711733,560.00,Revenue,SOUTH SEAA INN,
Fareham Borough Council,http://statistics.data.gov.uk/id/local-authority/24UE,GENERAL FUND HOUSING,BV05,HOMELESSNESS,BV05F,DEPT OF DEPUTY CHIEF EXECUTIVE,SUPPLIES & SERVICES,4,Social Community Care Supplies & Services,32,BED & BREAKFAST EXPENSES,4943,07/05/2021,711741,560.00,Revenue,SOUTH SEAA INN,
Fareham Borough Council,http://statistics.data.gov.uk/id/local-authority/24UE,GENERAL FUND HOUSING,BV05,HOMELESSNESS,BV05F,DEPT OF DEPUTY CHIEF EXECUTIVE,SUPPLIES & SERVICES,4,Social Community Care Supplies & Services,32,BED & BREAKFAST EXPENSES,4943,07/05/2021,711744,560.00,Revenue,SOUTH SEAA INN,
Fareham Borough Council,http://statistics.data.gov.uk/id/local-authority/24UE,GENERAL FUND HOUSING,BV05,HOMELESSNESS,BV05F,DEPT OF DEPUTY CHIEF EXECUTIVE,SUPPLIES & SERVICES,4,Social Community Care Supplies & Services,32,BED & BREAKFAST EXPENSES,4943,07/05/2021,711748,560.00,Revenue,SOUTH SEAA INN,
Fareham Borough Council,http://statistics.data.gov.uk/id/local-authority/24UE,OTHER REVENUE ACCOUNTS,RV,NON WORK GROUP HOLDING ACCOUNT,RV18,DEPT OF SUPPORT SERVICES,SUPPLIES & SERVICES,4,Information Communication Technology,27,ICT SOFTWARE LICENCES,4530,07/05/2021,711755,"8,896.55",Revenue,redacted data,
Fareham Borough Council,http://statistics.data.gov.uk/id/local-authority/24UE,CULTURAL AND RELATED SERVICES,BV09,RECREATION AND SPORT,BV09B,STREETSCENE,SUPPLIES & SERVICES,4,Building Construction Materials,10,SUB-CONTRACTORS CHARGES,4432,07/05/2021,711757,380.00,Revenue,J D C OUTDOOR SERVICES,05941402
Fareham Borough Council,http://statistics.data.gov.uk/id/local-authority/24UE,CULTURAL AND RELATED SERVICES,BV09,RECREATION AND SPORT,BV09B,STREETSCENE,SUPPLIES & SERVICES,4,Building Construction Materials,10,SUB-CONTRACTORS CHARGES,4432,07/05/2021,711757,243.00,Revenue,J D C OUTDOOR SERVICES,05941402
Fareham Borough Council,http://statistics.data.gov.uk/id/local-authority/24UE,HOUSING REVENUE ACCOUNT,BV06,RESPONSIVE & VOID MAINTENANCE,5901,DEPT OF DEPUTY CHIEF EXECUTIVE,PREMISES RELATED EXPENDITURE,2,Building Construction Materials,10,VOID COSTS - NOT RECHARGEABLE,2011,07/05/2021,711759,659.72,Revenue,SMITH BROTHERS (MARINE) LTD,
Fareham Borough Council,http://statistics.data.gov.uk/id/local-authority/24UE,HOUSING REVENUE ACCOUNT,BV06,RESPONSIVE & VOID MAINTENANCE,5901,DEPT OF DEPUTY CHIEF EXECUTIVE,PREMISES RELATED EXPENDITURE,2,"Works - Construction, Repair & Maintenance",39,GENERAL REPAIRS,2018,07/05/2021,711761,"2,668.10",Revenue,HI-TECH PROPERTY SERVICES LTD,04690266
Fareham Borough Council,http://statistics.data.gov.uk/id/local-authority/24UE,HOUSING REVENUE ACCOUNT,BV06,RESPONSIVE & VOID MAINTENANCE,5901,DEPT OF DEPUTY CHIEF EXECUTIVE,PREMISES RELATED EXPENDITURE,2,Building Construction Materials,10,GENERAL REPAIRS,2018,07/05/2021,711764,584.72,Revenue,SMITH BROTHERS (MARINE) LTD,
Fareham Borough Council,http://statistics.data.gov.uk/id/local-authority/24UE,ENVIRONMENT AND REGULATORY SER,BV03,WASTE COLLECTION,BV03G,STREETSCENE,EMPLOYEES RELATED EXPENDITURE,1,Human Resources,26,AGENCY WORKERS,1050,07/05/2021,711771,499.87,Revenue,THE BEST CONNECTION GROUP LTD,2600534
Fareham Borough Council,http://statistics.data.gov.uk/id/local-authority/24UE,ENVIRONMENT AND REGULATORY SER,BV03,WASTE COLLECTION,BV03G,STREETSCENE,EMPLOYEES RELATED EXPENDITURE,1,Human Resources,26,AGENCY WORKERS,1050,07/05/2021,711771,499.87,Revenue,THE BEST CONNECTION GROUP LTD,2600534
Fareham Borough Council,http://statistics.data.gov.uk/id/local-authority/24UE,ENVIRONMENT AND REGULATORY SER,BV03,WASTE COLLECTION,BV03G,STREETSCENE,SUPPLIES & SERVICES,4,Environmental Services,18,FURNITURE & EQUIPT. PURCHASES,4000,07/05/2021,711772,"5,750.00",Revenue,CRAEMER UK LTD,02574815
Fareham Borough Council,http://statistics.data.gov.uk/id/local-authority/24UE,CAPITAL PROGRAMME - HOUSING SERVICES,CP,RENOVATION OF L.A. DWELLINGS,CP10,CAPITAL - FAREHAM HOUSING CAPITAL,PREMISES RELATED EXPENDITURE,2,Building Construction Materials,10,R & M OF BUILDINGS,2000,07/05/2021,711776,966.00,Capital,IDEAL WINDOW SOLUTIONS LIMITED,3623785
Fareham Borough Council,http://statistics.data.gov.uk/id/local-authority/24UE,GENERAL FUND HOUSING,BV05,HOUSING ADVICE,BV05C,DEPT OF DEPUTY CHIEF EXECUTIVE,EMPLOYEES RELATED EXPENDITURE,1,Human Resources,26,AGENCY WORKERS,1050,07/05/2021,711777,"1,155.00",Revenue,G2 RECRUITMENT SOLUTIONS (G2V),08067630
Fareham Borough Council,http://statistics.data.gov.uk/id/local-authority/24UE,GENERAL FUND HOUSING,BV05,HOUSING ADVICE,BV05C,DEPT OF DEPUTY CHIEF EXECUTIVE,EMPLOYEES RELATED EXPENDITURE,1,Human Resources,26,AGENCY WORKERS,1050,07/05/2021,711778,"1,110.00",Revenue,G2 RECRUITMENT SOLUTIONS (G2V),08067630
Fareham Borough Council,http://statistics.data.gov.uk/id/local-authority/24UE,GENERAL FUND HOUSING,BV05,HOUSING ADVICE,BV05C,DEPT OF DEPUTY CHIEF EXECUTIVE,EMPLOYEES RELATED EXPENDITURE,1,Human Resources,26,AGENCY WORKERS,1050,07/05/2021,711779,610.50,Revenue,G2 RECRUITMENT SOLUTIONS (G2V),08067630
Fareham Borough Council,http://statistics.data.gov.uk/id/local-authority/24UE,CAPITAL PROGRAMME - HOUSING SERVICES,CP,RENOVATION OF L.A. DWELLINGS,CP10,CAPITAL - FAREHAM HOUSING CAPITAL,PREMISES RELATED EXPENDITURE,2,Information Communication Technology,27,R & M ALARM SPEECH SYSTEMS,2027,07/05/2021,711780,"1,570.54",Capital,TUNSTALL HEALTHCARE (UK) LTD,01332249
Fareham Borough Council,http://statistics.data.gov.uk/id/local-authority/24UE,CAPITAL PROGRAMME - HOUSING SERVICES,CP,RENOVATION OF L.A. DWELLINGS,CP10,CAPITAL - FAREHAM HOUSING CAPITAL,PREMISES RELATED EXPENDITURE,2,Information Communication Technology,27,R & M ALARM SPEECH SYSTEMS,2027,07/05/2021,711781,"7,709.51",Capital,TUNSTALL HEALTHCARE (UK) LTD,01332249
Fareham Borough Council,http://statistics.data.gov.uk/id/local-authority/24UE,CAPITAL PROGRAMME - HOUSING SERVICES,CP,RENOVATION OF L.A. DWELLINGS,CP10,CAPITAL - FAREHAM HOUSING CAPITAL,PREMISES RELATED EXPENDITURE,2,Information Communication Technology,27,R & M ALARM SPEECH SYSTEMS,2027,07/05/2021,711782,"1,181.50",Capital,TUNSTALL HEALTHCARE (UK) LTD,01332249
Fareham Borough Council,http://statistics.data.gov.uk/id/local-authority/24UE,CAPITAL PROGRAMME - HOUSING SERVICES,CP,RENOVATION OF L.A. DWELLINGS,CP10,CAPITAL - FAREHAM HOUSING CAPITAL,PREMISES RELATED EXPENDITURE,2,Information Communication Technology,27,R & M ALARM SPEECH SYSTEMS,2027,07/05/2021,711783,"3,960.76",Capital,TUNSTALL HEALTHCARE (UK) LTD,01332249
Fareham Borough Council,http://statistics.data.gov.uk/id/local-authority/24UE,CAPITAL PROGRAMME - HOUSING SERVICES,CP,RENOVATION OF L.A. DWELLINGS,CP10,CAPITAL - FAREHAM HOUSING CAPITAL,PREMISES RELATED EXPENDITURE,2,Information Communication Technology,27,R & M ALARM SPEECH SYSTEMS,2027,07/05/2021,711784,"1,311.18",Capital,TUNSTALL HEALTHCARE (UK) LTD,01332249
Fareham Borough Council,http://statistics.data.gov.uk/id/local-authority/24UE,CAPITAL PROGRAMME - HOUSING SERVICES,CP,RENOVATION OF L.A. DWELLINGS,CP10,CAPITAL - FAREHAM HOUSING CAPITAL,PREMISES RELATED EXPENDITURE,2,Information Communication Technology,27,R & M ALARM SPEECH SYSTEMS,2027,07/05/2021,711785,"5,023.77",Capital,TUNSTALL HEALTHCARE (UK) LTD,01332249
Fareham Borough Council,http://statistics.data.gov.uk/id/local-authority/24UE,GENERAL FUND HOUSING,BV05,HOUSING ADVICE,BV05C,DEPT OF DEPUTY CHIEF EXECUTIVE,SUPPLIES & SERVICES,4,Information Communication Technology,27,ICT SOFTWARE LICENCES,4530,07/05/2021,711788,"2,000.00",Revenue,redacted data,
Fareham Borough Council,http://statistics.data.gov.uk/id/local-authority/24UE,PLANNING SERVICES,BV13,DEVELOPMENT CONTROL,BV13B,DEPT of STRATEGIC PLANNING and ENVIRONMENT,SUPPLIES & SERVICES,4,Legal Services,28,CONSULTANTS FEES,4401,07/05/2021,711792,"2,500.00",Revenue,LANDMARK CHAMBERS,04525957
Fareham Borough Council,http://statistics.data.gov.uk/id/local-authority/24UE,PLANNING SERVICES,BV13,DEVELOPMENT CONTROL,BV13B,DEPT of STRATEGIC PLANNING and ENVIRONMENT,SUPPLIES & SERVICES,4,Consultancy,15,CONSULTANTS FEES,4401,07/05/2021,711793,"8,268.90",Revenue,ADAMS HENDRY CONSULTING LTD,03804753
Fareham Borough Council,http://statistics.data.gov.uk/id/local-authority/24UE,CAPITAL PROGRAMME - OTHER SERVICES,CP,CAPITAL ICT SCHEMES,CP23,DEPT OF SUPPORT SERVICES,SUPPLIES & SERVICES,4,Financial Services,20,ICT SOFTWARE LICENCES,4530,21/05/2021,711799,-500.00,Capital,CAPITA BUSINESS SERVICES LTD,02299747
Fareham Borough Council,http://statistics.data.gov.uk/id/local-authority/24UE,CAPITAL PROGRAMME - OTHER SERVICES,CP,CAPITAL ICT SCHEMES,CP23,DEPT OF SUPPORT SERVICES,SUPPLIES & SERVICES,4,Financial Services,20,ICT SOFTWARE LICENCES,4530,21/05/2021,711800,-500.00,Capital,CAPITA BUSINESS SERVICES LTD,02299747
Fareham Borough Council,http://statistics.data.gov.uk/id/local-authority/24UE,OTHER REVENUE ACCOUNTS,RV,NON WORK GROUP HOLDING ACCOUNT,RV18,DEPT OF SUPPORT SERVICES,EMPLOYEES RELATED EXPENDITURE,1,Consultancy,15,MEDICAL EXPENSES,1907,07/05/2021,711801,550.00,Revenue,DR JULIE MAY,
Fareham Borough Council,http://statistics.data.gov.uk/id/local-authority/24UE,CENTRAL SERVICES,BV07,CENTRAL SERVICES TO THE PUBLIC,BV07B,DEPT OF DEPUTY CHIEF EXECUTIVE,SUPPLIES & SERVICES,4,Facilities & Management Services,19,EXTERNAL PRINTING,4310,07/05/2021,711804,314.15,Revenue,CFH DOCMAIL LIMITED,07168911
Fareham Borough Council,http://statistics.data.gov.uk/id/local-authority/24UE,CENTRAL SERVICES,BV07,CENTRAL SERVICES TO THE PUBLIC,BV07B,DEPT OF DEPUTY CHIEF EXECUTIVE,SUPPLIES & SERVICES,4,Facilities & Management Services,19,EXTERNAL PRINTING,4310,07/05/2021,711804,"5,968.88",Revenue,CFH DOCMAIL LIMITED,07168911
Fareham Borough Council,http://statistics.data.gov.uk/id/local-authority/24UE,CENTRAL SERVICES,BV07,CENTRAL SERVICES TO THE PUBLIC,BV07B,DEPT OF DEPUTY CHIEF EXECUTIVE,SUPPLIES & SERVICES,4,Facilities & Management Services,19,EXTERNAL PRINTING,4310,07/05/2021,711806,0.91,Revenue,CFH DOCMAIL LIMITED,07168911
Fareham Borough Council,http://statistics.data.gov.uk/id/local-authority/24UE,CENTRAL SERVICES,BV07,CENTRAL SERVICES TO THE PUBLIC,BV07B,DEPT OF DEPUTY CHIEF EXECUTIVE,SUPPLIES & SERVICES,4,Facilities & Management Services,19,EXTERNAL PRINTING,4310,07/05/2021,711806,50.62,Revenue,CFH DOCMAIL LIMITED,07168911
Fareham Borough Council,http://statistics.data.gov.uk/id/local-authority/24UE,CENTRAL SERVICES,BV07,CENTRAL SERVICES TO THE PUBLIC,BV07B,DEPT OF DEPUTY CHIEF EXECUTIVE,SUPPLIES & SERVICES,4,Facilities & Management Services,19,EXTERNAL PRINTING,4310,07/05/2021,711806,979.16,Revenue,CFH DOCMAIL LIMITED,07168911
Fareham Borough Council,http://statistics.data.gov.uk/id/local-authority/24UE,OTHER REVENUE ACCOUNTS,RV,NON WORK GROUP HOLDING ACCOUNT,RV18,DEPT OF SUPPORT SERVICES,SUPPLIES & SERVICES,4,Legal Services,28,FURNITURE & EQUIPT. PURCHASES,4000,07/05/2021,711808,"4,000.00",Revenue,PARIS SMITH,
Fareham Borough Council,http://statistics.data.gov.uk/id/local-authority/24UE,CENTRAL SERVICES,BV07,CENTRAL SERVICES TO THE PUBLIC,BV07B,DEPT OF DEPUTY CHIEF EXECUTIVE,SUPPLIES & SERVICES,4,Facilities & Management Services,19,EXTERNAL PRINTING,4310,07/05/2021,711822,28.84,Revenue,CFH DOCMAIL LIMITED,07168911
Fareham Borough Council,http://statistics.data.gov.uk/id/local-authority/24UE,CENTRAL SERVICES,BV07,CENTRAL SERVICES TO THE PUBLIC,BV07B,DEPT OF DEPUTY CHIEF EXECUTIVE,SUPPLIES & SERVICES,4,Facilities & Management Services,19,EXTERNAL PRINTING,4310,07/05/2021,711822,547.94,Revenue,CFH DOCMAIL LIMITED,07168911
Fareham Borough Council,http://statistics.data.gov.uk/id/local-authority/24UE,ENVIRONMENT AND REGULATORY SER,BV03,CEMETERIES CREM & MORTUARY,BV03A,STREETSCENE,PREMISES RELATED EXPENDITURE,2,Environmental Services,18,R & M OF BUILDINGS,2000,07/05/2021,711824,51.61,Revenue,CLEARWATER TECHNOLOGY LTD,03659610
Fareham Borough Council,http://statistics.data.gov.uk/id/local-authority/24UE,CULTURAL AND RELATED SERVICES,BV09,RECREATION AND SPORT,BV09B,STREETSCENE,PREMISES RELATED EXPENDITURE,2,Environmental Services,18,R & M OF BUILDINGS,2000,07/05/2021,711824,23.74,Revenue,CLEARWATER TECHNOLOGY LTD,03659610
Fareham Borough Council,http://statistics.data.gov.uk/id/local-authority/24UE,CULTURAL AND RELATED SERVICES,BV09,RECREATION AND SPORT,BV09B,STREETSCENE,PREMISES RELATED EXPENDITURE,2,Environmental Services,18,R & M OF BUILDINGS,2000,07/05/2021,711824,550.47,Revenue,CLEARWATER TECHNOLOGY LTD,03659610
Fareham Borough Council,http://statistics.data.gov.uk/id/local-authority/24UE,CULTURAL AND RELATED SERVICES,BV09,RECREATION AND SPORT,BV09B,DEPT OF LEISURE & COMMUNITY,PREMISES RELATED EXPENDITURE,2,Environmental Services,18,R & M OF BUILDINGS,2000,07/05/2021,711824,0.86,Revenue,CLEARWATER TECHNOLOGY LTD,03659610
Fareham Borough Council,http://statistics.data.gov.uk/id/local-authority/24UE,HIGHWAYS ROADS AND TRANSPORT,BV12,PARKING SERVICES,BV12D,DEPT OF LEISURE & COMMUNITY,PREMISES RELATED EXPENDITURE,2,Environmental Services,18,R & M OF BUILDINGS,2000,07/05/2021,711824,1.38,Revenue,CLEARWATER TECHNOLOGY LTD,03659610
Fareham Borough Council,http://statistics.data.gov.uk/id/local-authority/24UE,ENVIRONMENT AND REGULATORY SER,BV03,ENVIRONMENTAL HEALTH,BV03C,STREETSCENE,PREMISES RELATED EXPENDITURE,2,Environmental Services,18,R & M OF BUILDINGS,2000,07/05/2021,711824,5.17,Revenue,CLEARWATER TECHNOLOGY LTD,03659610
Fareham Borough Council,http://statistics.data.gov.uk/id/local-authority/24UE,HOUSING REVENUE ACCOUNT,BV06,RESPONSIVE & VOID MAINTENANCE,5901,DEPT OF DEPUTY CHIEF EXECUTIVE,PREMISES RELATED EXPENDITURE,2,Environmental Services,18,R & M OF BUILDINGS,2000,07/05/2021,711824,172.02,Revenue,CLEARWATER TECHNOLOGY LTD,03659610
Fareham Borough Council,http://statistics.data.gov.uk/id/local-authority/24UE,OTHER REVENUE ACCOUNTS,RV,NON WORK GROUP HOLDING ACCOUNT,RV18,DEPT of STRATEGIC PLANNING and ENVIRONMENT,PREMISES RELATED EXPENDITURE,2,Environmental Services,18,R & M OF BUILDINGS,2000,07/05/2021,711824,690.84,Revenue,CLEARWATER TECHNOLOGY LTD,03659610
Fareham Borough Council,http://statistics.data.gov.uk/id/local-authority/24UE,OTHER REVENUE ACCOUNTS,RV,NON WORK GROUP HOLDING ACCOUNT,RV18,DEPT of STRATEGIC PLANNING and ENVIRONMENT,PREMISES RELATED EXPENDITURE,2,Environmental Services,18,R & M OF BUILDINGS,2000,07/05/2021,711824,51.61,Revenue,CLEARWATER TECHNOLOGY LTD,03659610
Fareham Borough Council,http://statistics.data.gov.uk/id/local-authority/24UE,CULTURAL AND RELATED SERVICES,BV09,RECREATION AND SPORT,BV09B,STREETSCENE,SUPPLIES & SERVICES,4,Building Construction Materials,10,SUB-CONTRACTORS CHARGES,4432,07/05/2021,711826,"2,725.00",Revenue,J D C OUTDOOR SERVICES,05941402
Fareham Borough Council,http://statistics.data.gov.uk/id/local-authority/24UE,HOUSING REVENUE ACCOUNT,BV06,RESPONSIVE & VOID MAINTENANCE,5901,DEPT OF DEPUTY CHIEF EXECUTIVE,PREMISES RELATED EXPENDITURE,2,Consultancy,15,GENERAL REPAIRS,2018,07/05/2021,711828,893.55,Revenue,WSP UK LTD,01383511
Fareham Borough Council,http://statistics.data.gov.uk/id/local-authority/24UE,PLANNING SERVICES,BV13,DEVELOPMENT CONTROL,BV13B,DEPT of STRATEGIC PLANNING and ENVIRONMENT,SUPPLIES & SERVICES,4,Legal Services,28,CONSULTANTS FEES,4401,07/05/2021,711830,"6,392.50",Revenue,CORNERSTONE BARRISTERS,
Fareham Borough Council,http://statistics.data.gov.uk/id/local-authority/24UE,ENVIRONMENT AND REGULATORY SER,BV03,WASTE COLLECTION,BV03G,STREETSCENE,TRANSPORT RELATED EXPENDITURE,3,Vehicle Management,38,ROUTINE REPAIRS VEHICLES/PLANT,3010,07/05/2021,711836,774.13,Revenue,DENNIS EAGLE LIMITED,03794455
Fareham Borough Council,http://statistics.data.gov.uk/id/local-authority/24UE,HOUSING REVENUE ACCOUNT,BV06,RESPONSIVE & VOID MAINTENANCE,5901,DEPT OF DEPUTY CHIEF EXECUTIVE,PREMISES RELATED EXPENDITURE,2,Environmental Services,18,SPECIAL REFUSE COLLECTIONS,2750,14/05/2021,712071,"3,691.88",Revenue,VEOLIA ES HAMPSHIRE LIMITED,02817856
Fareham Borough Council,http://statistics.data.gov.uk/id/local-authority/24UE,HOUSING REVENUE ACCOUNT,BV06,RESPONSIVE & VOID MAINTENANCE,5901,DEPT OF DEPUTY CHIEF EXECUTIVE,PREMISES RELATED EXPENDITURE,2,Consultancy,15,GENERAL REPAIRS,2018,14/05/2021,712073,798.00,Revenue,GAS CONTRACT SERVICES LIMITED,3400365
Fareham Borough Council,http://statistics.data.gov.uk/id/local-authority/24UE,HOUSING REVENUE ACCOUNT,BV06,RESPONSIVE & VOID MAINTENANCE,5901,DEPT OF DEPUTY CHIEF EXECUTIVE,PREMISES RELATED EXPENDITURE,2,Building Construction Materials,10,GENERAL REPAIRS,2018,14/05/2021,712075,"1,422.30",Revenue,BAKES ROOFING LTD,4579948
Fareham Borough Council,http://statistics.data.gov.uk/id/local-authority/24UE,HOUSING REVENUE ACCOUNT,BV06,RESPONSIVE & VOID MAINTENANCE,5901,DEPT OF DEPUTY CHIEF EXECUTIVE,PREMISES RELATED EXPENDITURE,2,"Works - Construction, Repair & Maintenance",39,GENERAL REPAIRS,2018,14/05/2021,712083,581.40,Revenue,IGS FENCING LTD,6438562
Fareham Borough Council,http://statistics.data.gov.uk/id/local-authority/24UE,HOUSING REVENUE ACCOUNT,BV06,RESPONSIVE & VOID MAINTENANCE,5901,DEPT OF DEPUTY CHIEF EXECUTIVE,PREMISES RELATED EXPENDITURE,2,"Works - Construction, Repair & Maintenance",39,GENERAL REPAIRS,2018,14/05/2021,712085,630.97,Revenue,IGS FENCING LTD,6438562
Fareham Borough Council,http://statistics.data.gov.uk/id/local-authority/24UE,PLANNING SERVICES,BV13,ECONOMIC DEVELOPMENT,BV13E,DEPT of STRATEGIC PLANNING and ENVIRONMENT,SUPPLIES & SERVICES,4,Education,17,CONSULTANTS FEES,4401,14/05/2021,712086,"9,890.00",Revenue,UNIVERSITY OF PORTSMOUTH,2353125
Fareham Borough Council,http://statistics.data.gov.uk/id/local-authority/24UE,HIGHWAYS ROADS AND TRANSPORT,BV12,PARKING SERVICES,BV12D,DEPT OF LEISURE & COMMUNITY,SUPPLIES & SERVICES,4,Financial Services,20,SECURITY SERVICES,4409,14/05/2021,712111,673.31,Revenue,JADE SECURITY SERVICES LTD,3549438
Fareham Borough Council,http://statistics.data.gov.uk/id/local-authority/24UE,OTHER REVENUE ACCOUNTS,RV,NON WORK GROUP HOLDING ACCOUNT,RV18,DEPT OF LEISURE & COMMUNITY,SUPPLIES & SERVICES,4,Financial Services,20,SECURITY SERVICES,4409,14/05/2021,712111,62.80,Revenue,JADE SECURITY SERVICES LTD,3549438
Fareham Borough Council,http://statistics.data.gov.uk/id/local-authority/24UE,FINANCING & INVESTMENT I&E,BVB02,INVESTMENT PROPERTIES,BVB170,DEPT of STRATEGIC PLANNING and ENVIRONMENT,PREMISES RELATED EXPENDITURE,2,Facilities & Management Services,19,R & M OF BUILDINGS,2000,14/05/2021,712115,65.00,Revenue,TEMPLE LIFTS LTD,2388497
Fareham Borough Council,http://statistics.data.gov.uk/id/local-authority/24UE,FINANCING & INVESTMENT I&E,BVB02,INVESTMENT PROPERTIES,BVB170,DEPT OF LEISURE & COMMUNITY,PREMISES RELATED EXPENDITURE,2,Facilities & Management Services,19,R & M OF BUILDINGS,2000,14/05/2021,712115,50.00,Revenue,TEMPLE LIFTS LTD,2388497
Fareham Borough Council,http://statistics.data.gov.uk/id/local-authority/24UE,HIGHWAYS ROADS AND TRANSPORT,BV12,PARKING SERVICES,BV12D,DEPT OF LEISURE & COMMUNITY,PREMISES RELATED EXPENDITURE,2,Facilities & Management Services,19,R & M OF LIFTS,2050,14/05/2021,712115,355.00,Revenue,TEMPLE LIFTS LTD,2388497
Fareham Borough Council,http://statistics.data.gov.uk/id/local-authority/24UE,HOUSING REVENUE ACCOUNT,BV06,RESPONSIVE & VOID MAINTENANCE,5901,DEPT OF DEPUTY CHIEF EXECUTIVE,PREMISES RELATED EXPENDITURE,2,Facilities & Management Services,19,SERVICING,2083,14/05/2021,712115,775.00,Revenue,TEMPLE LIFTS LTD,2388497
Fareham Borough Council,http://statistics.data.gov.uk/id/local-authority/24UE,OTHER REVENUE ACCOUNTS,RV,NON WORK GROUP HOLDING ACCOUNT,RV18,DEPT of STRATEGIC PLANNING and ENVIRONMENT,PREMISES RELATED EXPENDITURE,2,Facilities & Management Services,19,R & M OF LIFTS,2050,14/05/2021,712115,275.01,Revenue,TEMPLE LIFTS LTD,2388497
Fareham Borough Council,http://statistics.data.gov.uk/id/local-authority/24UE,OTHER REVENUE ACCOUNTS,RV,NON WORK GROUP HOLDING ACCOUNT,RV18,DEPT of STRATEGIC PLANNING and ENVIRONMENT,PREMISES RELATED EXPENDITURE,2,Facilities & Management Services,19,R & M OF LIFTS,2050,14/05/2021,712115,65.00,Revenue,TEMPLE LIFTS LTD,2388497
Fareham Borough Council,http://statistics.data.gov.uk/id/local-authority/24UE,BALANCE SHEET,BS,BAL. SHEET - GENERAL FUND,BS1,BAL. SHEET - GENERAL FUND,PERSONAL ACCOUNTS,BS210,Vehicle Management,38,CAR LEASING ACCOUNT,P253,28/05/2021,712130,755.21,Balance Sheet,HITACHI CAPITAL VEHICLE SOLUTIONS,1630491
Fareham Borough Council,http://statistics.data.gov.uk/id/local-authority/24UE,BALANCE SHEET,BS,BAL. SHEET - GENERAL FUND,BS1,BAL. SHEET - GENERAL FUND,PERSONAL ACCOUNTS,BS210,Vehicle Management,38,CAR LEASING ACCOUNT,P253,28/05/2021,712130,457.93,Balance Sheet,HITACHI CAPITAL VEHICLE SOLUTIONS,1630491
Fareham Borough Council,http://statistics.data.gov.uk/id/local-authority/24UE,ENVIRONMENT AND REGULATORY SER,BV03,WASTE COLLECTION,BV03G,STREETSCENE,SUPPLIES & SERVICES,4,Local/Central Government,98,GRANTS AND SUBSCRIPTIONS,4700,14/05/2021,712134,"4,240.00",Revenue,HAMPSHIRE COUNTY COUNCIL,
Fareham Borough Council,http://statistics.data.gov.uk/id/local-authority/24UE,GENERAL FUND HOUSING,BV05,HOMELESSNESS,BV05F,DEPT OF DEPUTY CHIEF EXECUTIVE,SUPPLIES & SERVICES,4,Social Community Care Supplies & Services,32,BED & BREAKFAST EXPENSES,4943,14/05/2021,712138,630.00,Revenue,PORTSMOUTH INNS,
Fareham Borough Council,http://statistics.data.gov.uk/id/local-authority/24UE,GENERAL FUND HOUSING,BV05,HOMELESSNESS,BV05F,DEPT OF DEPUTY CHIEF EXECUTIVE,SUPPLIES & SERVICES,4,Social Community Care Supplies & Services,32,BED & BREAKFAST EXPENSES,4943,14/05/2021,712139,630.00,Revenue,PORTSMOUTH INNS,
Fareham Borough Council,http://statistics.data.gov.uk/id/local-authority/24UE,GENERAL FUND HOUSING,BV05,HOMELESSNESS,BV05F,DEPT OF DEPUTY CHIEF EXECUTIVE,SUPPLIES & SERVICES,4,Social Community Care Supplies & Services,32,BED & BREAKFAST EXPENSES,4943,14/05/2021,712144,560.00,Revenue,A GOSPORT INN,
Fareham Borough Council,http://statistics.data.gov.uk/id/local-authority/24UE,GENERAL FUND HOUSING,BV05,HOMELESSNESS,BV05F,DEPT OF DEPUTY CHIEF EXECUTIVE,SUPPLIES & SERVICES,4,Social Community Care Supplies & Services,32,BED & BREAKFAST EXPENSES,4943,14/05/2021,712145,560.00,Revenue,A GOSPORT INN,
Fareham Borough Council,http://statistics.data.gov.uk/id/local-authority/24UE,GENERAL FUND HOUSING,BV05,HOMELESSNESS,BV05F,DEPT OF DEPUTY CHIEF EXECUTIVE,SUPPLIES & SERVICES,4,Social Community Care Supplies & Services,32,BED & BREAKFAST EXPENSES,4943,14/05/2021,712146,630.00,Revenue,A GOSPORT INN,
Fareham Borough Council,http://statistics.data.gov.uk/id/local-authority/24UE,GENERAL FUND HOUSING,BV05,HOMELESSNESS,BV05F,DEPT OF DEPUTY CHIEF EXECUTIVE,SUPPLIES & SERVICES,4,Social Community Care Supplies & Services,32,BED & BREAKFAST EXPENSES,4943,14/05/2021,712147,560.00,Revenue,A GOSPORT INN,
Fareham Borough Council,http://statistics.data.gov.uk/id/local-authority/24UE,GENERAL FUND HOUSING,BV05,HOMELESSNESS,BV05F,DEPT OF DEPUTY CHIEF EXECUTIVE,SUPPLIES & SERVICES,4,Social Community Care Supplies & Services,32,BED & BREAKFAST EXPENSES,4943,14/05/2021,712148,560.00,Revenue,A GOSPORT INN,
Fareham Borough Council,http://statistics.data.gov.uk/id/local-authority/24UE,GENERAL FUND HOUSING,BV05,HOMELESSNESS,BV05F,DEPT OF DEPUTY CHIEF EXECUTIVE,SUPPLIES & SERVICES,4,Social Community Care Supplies & Services,32,BED & BREAKFAST EXPENSES,4943,14/05/2021,712152,630.00,Revenue,A GOSPORT INN,
Fareham Borough Council,http://statistics.data.gov.uk/id/local-authority/24UE,OTHER REVENUE ACCOUNTS,RV,NON WORK GROUP HOLDING ACCOUNT,RV18,DEPT of STRATEGIC PLANNING and ENVIRONMENT,PREMISES RELATED EXPENDITURE,2,Building Construction Materials,10,R & M OF BUILDINGS,2000,14/05/2021,712166,"1,280.00",Revenue,WHITTAKER SCAFFOLD LTD,10985903
Fareham Borough Council,http://statistics.data.gov.uk/id/local-authority/24UE,PLANNING SERVICES,BV13,PLANNING POLICY,BV13C,DEPT of STRATEGIC PLANNING and ENVIRONMENT,SUPPLIES & SERVICES,4,Consultancy,15,CONSULTANTS FEES,4401,14/05/2021,712168,"3,600.00",Revenue,INTELLIGENT PLANS AND EXAMINATIONS (IPE) LTD,10100118
Fareham Borough Council,http://statistics.data.gov.uk/id/local-authority/24UE,PLANNING SERVICES,BV13,PLANNING POLICY,BV13C,DEPT of STRATEGIC PLANNING and ENVIRONMENT,SUPPLIES & SERVICES,4,Consultancy,15,CONSULTANTS FEES,4401,14/05/2021,712169,"4,900.00",Revenue,URBAN EDGE ENVIRONMENTAL CONSULTING LTD,
Fareham Borough Council,http://statistics.data.gov.uk/id/local-authority/24UE,PLANNING SERVICES,BV13,DEVELOPMENT CONTROL,BV13B,DEPT of STRATEGIC PLANNING and ENVIRONMENT,PREMISES RELATED EXPENDITURE,2,Horticultural,24,R&M OF TREE PRESERVATION,2063,14/05/2021,712172,863.50,Revenue,CEDAR TREE SURGEONS,
Fareham Borough Council,http://statistics.data.gov.uk/id/local-authority/24UE,HOUSING REVENUE ACCOUNT,BV06,MAINT OF LAWNS VERGES ETC,5030,DEPT OF DEPUTY CHIEF EXECUTIVE,PREMISES RELATED EXPENDITURE,2,Horticultural,24,R&M OF TREE PRESERVATION,2063,14/05/2021,712172,680.50,Revenue,CEDAR TREE SURGEONS,
Fareham Borough Council,http://statistics.data.gov.uk/id/local-authority/24UE,HOUSING REVENUE ACCOUNT,BV06,OTHER COMMUNAL SERVICES,5034,DEPT OF DEPUTY CHIEF EXECUTIVE,SUPPLIES & SERVICES,4,Housing Management,25,FURNITURE & EQUIPT.-RENTS/LSES,4040,14/05/2021,712174,"1,007.73",Revenue,JLA TOTAL CARE LTD,02951461
Fareham Borough Council,http://statistics.data.gov.uk/id/local-authority/24UE,CENTRAL SERVICES,BV07,CENTRAL SERVICES TO THE PUBLIC,BV07B,DEPT OF SUPPORT SERVICES,SUPPLIES & SERVICES,4,Facilities & Management Services,19,POSTAGES,4500,14/05/2021,712182,"2,850.39",Revenue,FINANCIAL DATA MANAGEMENT LTD,2827644
Fareham Borough Council,http://statistics.data.gov.uk/id/local-authority/24UE,PLANNING SERVICES,BV13,ECONOMIC DEVELOPMENT,BV13E,DEPT OF LEISURE & COMMUNITY,SUPPLIES & SERVICES,4,Environmental Services,18,OTHER SERVICES,4499,14/05/2021,712184,243.40,Revenue,RITAGATE LTD,1562914
Fareham Borough Council,http://statistics.data.gov.uk/id/local-authority/24UE,PLANNING SERVICES,BV13,ECONOMIC DEVELOPMENT,BV13E,DEPT OF LEISURE & COMMUNITY,SUPPLIES & SERVICES,4,Environmental Services,18,OTHER SERVICES,4499,14/05/2021,712184,"1,357.24",Revenue,RITAGATE LTD,1562914
Fareham Borough Council,http://statistics.data.gov.uk/id/local-authority/24UE,HIGHWAYS ROADS AND TRANSPORT,BV12,PARKING SERVICES,BV12D,DEPT OF LEISURE & COMMUNITY,SUPPLIES & SERVICES,4,Facilities & Management Services,19,SECURITY SERVICES,4409,14/05/2021,712186,"2,646.30",Revenue,VENTURE SECURITY MANAGEMENT LTD,06000601
Fareham Borough Council,http://statistics.data.gov.uk/id/local-authority/24UE,HOUSING REVENUE ACCOUNT,BV06,RESPONSIVE & VOID MAINTENANCE,5901,DEPT OF DEPUTY CHIEF EXECUTIVE,PREMISES RELATED EXPENDITURE,2,"Works - Construction, Repair & Maintenance",39,ELEC SERVICING & ASSOC REPAIRS,2025,14/05/2021,712189,"3,113.46",Revenue,BCG ELECTRICAL SERVICES LIMITED,5097428
Fareham Borough Council,http://statistics.data.gov.uk/id/local-authority/24UE,CAPITAL PROGRAMME - HOUSING SERVICES,CP,RENOVATION OF L.A. DWELLINGS,CP10,CAPITAL - FAREHAM HOUSING CAPITAL,PREMISES RELATED EXPENDITURE,2,"Works - Construction, Repair & Maintenance",39,VOID COSTS - NOT RECHARGEABLE,2011,14/05/2021,712191,"13,039.61",Capital,MOUNTJOY LTD,06009150
Fareham Borough Council,http://statistics.data.gov.uk/id/local-authority/24UE,CAPITAL PROGRAMME - HOUSING SERVICES,CP,RENOVATION OF L.A. DWELLINGS,CP10,CAPITAL - FAREHAM HOUSING CAPITAL,PREMISES RELATED EXPENDITURE,2,"Works - Construction, Repair & Maintenance",39,VOID COSTS - NOT RECHARGEABLE,2011,14/05/2021,712191,"18,605.50",Capital,MOUNTJOY LTD,06009150
Fareham Borough Council,http://statistics.data.gov.uk/id/local-authority/24UE,CAPITAL PROGRAMME - HOUSING SERVICES,CP,RENOVATION OF L.A. DWELLINGS,CP10,CAPITAL - FAREHAM HOUSING CAPITAL,PREMISES RELATED EXPENDITURE,2,"Works - Construction, Repair & Maintenance",39,VOID COSTS - NOT RECHARGEABLE,2011,14/05/2021,712191,"3,783.92",Capital,MOUNTJOY LTD,06009150
Fareham Borough Council,http://statistics.data.gov.uk/id/local-authority/24UE,CAPITAL PROGRAMME - HOUSING SERVICES,CP,RENOVATION OF L.A. DWELLINGS,CP10,CAPITAL - FAREHAM HOUSING CAPITAL,PREMISES RELATED EXPENDITURE,2,"Works - Construction, Repair & Maintenance",39,VOID COSTS - NOT RECHARGEABLE,2011,14/05/2021,712191,"3,644.84",Capital,MOUNTJOY LTD,06009150
Fareham Borough Council,http://statistics.data.gov.uk/id/local-authority/24UE,CAPITAL PROGRAMME - HOUSING SERVICES,CP,RENOVATION OF L.A. DWELLINGS,CP10,CAPITAL - FAREHAM HOUSING CAPITAL,PREMISES RELATED EXPENDITURE,2,"Works - Construction, Repair & Maintenance",39,VOID COSTS - NOT RECHARGEABLE,2011,14/05/2021,712191,"13,283.62",Capital,MOUNTJOY LTD,06009150
Fareham Borough Council,http://statistics.data.gov.uk/id/local-authority/24UE,HOUSING REVENUE ACCOUNT,BV06,RESPONSIVE & VOID MAINTENANCE,5901,DEPT OF DEPUTY CHIEF EXECUTIVE,PREMISES RELATED EXPENDITURE,2,"Works - Construction, Repair & Maintenance",39,VOID COSTS - NOT RECHARGEABLE,2011,14/05/2021,712191,"3,452.31",Revenue,MOUNTJOY LTD,06009150
Fareham Borough Council,http://statistics.data.gov.uk/id/local-authority/24UE,HOUSING REVENUE ACCOUNT,BV06,RESPONSIVE & VOID MAINTENANCE,5901,DEPT OF DEPUTY CHIEF EXECUTIVE,PREMISES RELATED EXPENDITURE,2,"Works - Construction, Repair & Maintenance",39,SPECIALIST CLEANING & CLEARNCE,2701,14/05/2021,712191,932.52,Revenue,MOUNTJOY LTD,06009150
Fareham Borough Council,http://statistics.data.gov.uk/id/local-authority/24UE,CAPITAL PROGRAMME - HOUSING SERVICES,CP,RENOVATION OF L.A. DWELLINGS,CP10,CAPITAL - FAREHAM HOUSING CAPITAL,PREMISES RELATED EXPENDITURE,2,"Works - Construction, Repair & Maintenance",39,R & M OF BUILDINGS,2000,14/05/2021,712192,"5,010.64",Capital,MOUNTJOY LTD,06009150
Fareham Borough Council,http://statistics.data.gov.uk/id/local-authority/24UE,CAPITAL PROGRAMME - HOUSING SERVICES,CP,RENOVATION OF L.A. DWELLINGS,CP10,CAPITAL - FAREHAM HOUSING CAPITAL,PREMISES RELATED EXPENDITURE,2,"Works - Construction, Repair & Maintenance",39,VOID COSTS - NOT RECHARGEABLE,2011,14/05/2021,712193,"18,159.15",Capital,MOUNTJOY LTD,06009150
Fareham Borough Council,http://statistics.data.gov.uk/id/local-authority/24UE,CAPITAL PROGRAMME - HOUSING SERVICES,CP,RENOVATION OF L.A. DWELLINGS,CP10,CAPITAL - FAREHAM HOUSING CAPITAL,PREMISES RELATED EXPENDITURE,2,"Works - Construction, Repair & Maintenance",39,VOID COSTS - NOT RECHARGEABLE,2011,14/05/2021,712193,"3,131.04",Capital,MOUNTJOY LTD,06009150
Fareham Borough Council,http://statistics.data.gov.uk/id/local-authority/24UE,CAPITAL PROGRAMME - HOUSING SERVICES,CP,RENOVATION OF L.A. DWELLINGS,CP10,CAPITAL - FAREHAM HOUSING CAPITAL,PREMISES RELATED EXPENDITURE,2,"Works - Construction, Repair & Maintenance",39,R & M OF BUILDINGS,2000,14/05/2021,712195,52.58,Capital,MOUNTJOY LTD,06009150
Fareham Borough Council,http://statistics.data.gov.uk/id/local-authority/24UE,CAPITAL PROGRAMME - HOUSING SERVICES,CP,RENOVATION OF L.A. DWELLINGS,CP10,CAPITAL - FAREHAM HOUSING CAPITAL,PREMISES RELATED EXPENDITURE,2,"Works - Construction, Repair & Maintenance",39,R & M OF BUILDINGS,2000,14/05/2021,712195,"3,606.03",Capital,MOUNTJOY LTD,06009150
Fareham Borough Council,http://statistics.data.gov.uk/id/local-authority/24UE,CULTURAL AND RELATED SERVICES,BV09,RECREATION AND SPORT,BV09B,STREETSCENE,PREMISES RELATED EXPENDITURE,2,Horticultural,24,R&M OF GROUNDS,2060,14/05/2021,712198,"3,104.11",Revenue,BOURNE AMENITY LTD,3453821
Fareham Borough Council,http://statistics.data.gov.uk/id/local-authority/24UE,CULTURAL AND RELATED SERVICES,BV09,RECREATION AND SPORT,BV09B,STREETSCENE,PREMISES RELATED EXPENDITURE,2,Horticultural,24,R&M OF GROUNDS,2060,14/05/2021,712205,"4,480.00",Revenue,BOURNE AMENITY LTD,3453821
Fareham Borough Council,http://statistics.data.gov.uk/id/local-authority/24UE,CULTURAL AND RELATED SERVICES,BV09,RECREATION AND SPORT,BV09B,STREETSCENE,SUPPLIES & SERVICES,4,Highway Equipment & Materials�,23,FURNITURE & EQUIPT. PURCHASES,4000,14/05/2021,712211,539.02,Revenue,GLASDON U K LIMITED,02160576
Fareham Borough Council,http://statistics.data.gov.uk/id/local-authority/24UE,CULTURAL AND RELATED SERVICES,BV09,RECREATION AND SPORT,BV09B,STREETSCENE,SUPPLIES & SERVICES,4,Highway Equipment & Materials�,23,FURNITURE & EQUIPT. PURCHASES,4000,14/05/2021,712212,539.02,Revenue,GLASDON U K LIMITED,02160576
Fareham Borough Council,http://statistics.data.gov.uk/id/local-authority/24UE,CULTURAL AND RELATED SERVICES,BV09,RECREATION AND SPORT,BV09B,STREETSCENE,TRANSPORT RELATED EXPENDITURE,3,Unclassified,,VEHICLE LICENCES,3023,21/05/2021,712213,275.00,Revenue,DVLA SWANSEA,
Fareham Borough Council,http://statistics.data.gov.uk/id/local-authority/24UE,OTHER REVENUE ACCOUNTS,RV,CONTRACT SERVICES D.S.O.,RV14,DEPT OF DEPUTY CHIEF EXECUTIVE,TRANSPORT RELATED EXPENDITURE,3,Unclassified,,VEHICLE LICENCES,3023,21/05/2021,712213,275.00,Revenue,DVLA SWANSEA,
Fareham Borough Council,http://statistics.data.gov.uk/id/local-authority/24UE,OTHER REVENUE ACCOUNTS,RV,CONTRACT SERVICES D.S.O.,RV14,DEPT OF DEPUTY CHIEF EXECUTIVE,TRANSPORT RELATED EXPENDITURE,3,Unclassified,,VEHICLE LICENCES,3023,21/05/2021,712213,275.00,Revenue,DVLA SWANSEA,
Fareham Borough Council,http://statistics.data.gov.uk/id/local-authority/24UE,OTHER REVENUE ACCOUNTS,RV,CONTRACT SERVICES D.S.O.,RV14,DEPT OF DEPUTY CHIEF EXECUTIVE,TRANSPORT RELATED EXPENDITURE,3,Unclassified,,VEHICLE LICENCES,3023,21/05/2021,712213,275.00,Revenue,DVLA SWANSEA,
Fareham Borough Council,http://statistics.data.gov.uk/id/local-authority/24UE,OTHER REVENUE ACCOUNTS,RV,CONTRACT SERVICES D.S.O.,RV14,DEPT OF DEPUTY CHIEF EXECUTIVE,TRANSPORT RELATED EXPENDITURE,3,Unclassified,,VEHICLE LICENCES,3023,21/05/2021,712213,275.00,Revenue,DVLA SWANSEA,
Fareham Borough Council,http://statistics.data.gov.uk/id/local-authority/24UE,OTHER REVENUE ACCOUNTS,RV,NON WORK GROUP HOLDING ACCOUNT,RV18,DEPT of STRATEGIC PLANNING and ENVIRONMENT,SUPPLIES & SERVICES,4,Catering,11,VENDING M/C PROVISIONS,4105,21/05/2021,712214,785.19,Revenue,LAVAZZA PROFESSIONAL UK LTD,06649987
Fareham Borough Council,http://statistics.data.gov.uk/id/local-authority/24UE,OTHER REVENUE ACCOUNTS,RV,NON WORK GROUP HOLDING ACCOUNT,RV18,DEPT of STRATEGIC PLANNING and ENVIRONMENT,SUPPLIES & SERVICES,4,Catering,11,VENDING M/C PROVISIONS,4105,21/05/2021,712215,591.28,Revenue,LAVAZZA PROFESSIONAL UK LTD,06649987
Fareham Borough Council,http://statistics.data.gov.uk/id/local-authority/24UE,OTHER REVENUE ACCOUNTS,RV,CONTRACT SERVICES D.S.O.,RV14,DEPT OF DEPUTY CHIEF EXECUTIVE,EMPLOYEES RELATED EXPENDITURE,1,Human Resources,26,AGENCY WORKERS,1050,14/05/2021,712219,550.00,Revenue,INTERACTION RECRUITMENT PLC,2408326
Fareham Borough Council,http://statistics.data.gov.uk/id/local-authority/24UE,BALANCE SHEET,BS,BAL. SHEET - GENERAL FUND,BS1,BAL. SHEET - GENERAL FUND,PERSONAL ACCOUNTS,BS210,Vehicle Management,38,CAR LEASING ACCOUNT,P253,14/05/2021,712220,657.81,Balance Sheet,HITACHI CAPITAL VEHICLE SOLUTIONS,1630491
Fareham Borough Council,http://statistics.data.gov.uk/id/local-authority/24UE,BALANCE SHEET,BS,BAL. SHEET - GENERAL FUND,BS1,BAL. SHEET - GENERAL FUND,PERSONAL ACCOUNTS,BS210,Vehicle Management,38,CAR LEASING ACCOUNT,P253,14/05/2021,712220,458.96,Balance Sheet,HITACHI CAPITAL VEHICLE SOLUTIONS,1630491
Fareham Borough Council,http://statistics.data.gov.uk/id/local-authority/24UE,BALANCE SHEET,BS,FMS BAL.SHEET & CONTROL ACCT.,BS1,FMS BAL.SHEET & CONTROL ACCT.,CONTROL ACCOUNTS,C001,Financial Services,20,GOVT PROCURE CARD-CASH CONTROL,C114,14/05/2021,712232,"1,905.65",Balance Sheet,NATWEST COMMERCIAL CARDS,929027
Fareham Borough Council,http://statistics.data.gov.uk/id/local-authority/24UE,BALANCE SHEET,BS,FMS BAL.SHEET & CONTROL ACCT.,BS1,FMS BAL.SHEET & CONTROL ACCT.,CONTROL ACCOUNTS,C001,Financial Services,20,GOVT PROCURE CARD-CASH CONTROL,C114,14/05/2021,712233,"34,681.66",Balance Sheet,NATWEST COMMERCIAL CARDS,929027
Fareham Borough Council,http://statistics.data.gov.uk/id/local-authority/24UE,OTHER REVENUE ACCOUNTS,RV,CONTRACT SERVICES D.S.O.,RV14,DEPT of STRATEGIC PLANNING and ENVIRONMENT,SUPPLIES & SERVICES,4,Local/Central Government,98,SUB-CONTRACTORS CHARGES,4432,14/05/2021,712239,683.76,Revenue,WINCHESTER CITY COUNCIL,
Fareham Borough Council,http://statistics.data.gov.uk/id/local-authority/24UE,CULTURAL AND RELATED SERVICES,BV09,CULTURE AND HERITAGE,BV09A,STREETSCENE,PREMISES RELATED EXPENDITURE,2,Utilities,37,ELECTRICITY,2120,14/05/2021,712241,50.94,Revenue,EDF ENERGY,02366852
Fareham Borough Council,http://statistics.data.gov.uk/id/local-authority/24UE,ENVIRONMENT AND REGULATORY SER,BV03,ENVIRONMENTAL HEALTH,BV03C,DEPT OF SUPPORT SERVICES,PREMISES RELATED EXPENDITURE,2,Utilities,37,ELECTRICITY,2120,14/05/2021,712241,211.97,Revenue,EDF ENERGY,02366852
Fareham Borough Council,http://statistics.data.gov.uk/id/local-authority/24UE,HIGHWAYS ROADS AND TRANSPORT,BV12,PARKING SERVICES,BV12D,DEPT OF LEISURE & COMMUNITY,PREMISES RELATED EXPENDITURE,2,Utilities,37,ELECTRICITY,2120,14/05/2021,712241,79.23,Revenue,EDF ENERGY,02366852
Fareham Borough Council,http://statistics.data.gov.uk/id/local-authority/24UE,HOUSING REVENUE ACCOUNT,BV06,COMMUNAL LIGHTING,5026,DEPT OF DEPUTY CHIEF EXECUTIVE,PREMISES RELATED EXPENDITURE,2,Utilities,37,ELECTRICITY,2120,14/05/2021,712241,594.64,Revenue,EDF ENERGY,02366852
Fareham Borough Council,http://statistics.data.gov.uk/id/local-authority/24UE,CAPITAL PROGRAMME - HOUSING SERVICES,CP,RENOVATION OF L.A. DWELLINGS,CP10,CAPITAL - FAREHAM HOUSING CAPITAL,PREMISES RELATED EXPENDITURE,2,Utilities,37,R & M OF BUILDINGS,2000,14/05/2021,712245,"3,283.91",Capital,SSE CONTRACTING LTD,02317133
Fareham Borough Council,http://statistics.data.gov.uk/id/local-authority/24UE,HOUSING REVENUE ACCOUNT,BV06,RESPONSIVE & VOID MAINTENANCE,5901,DEPT OF DEPUTY CHIEF EXECUTIVE,PREMISES RELATED EXPENDITURE,2,Building Construction Materials,10,GENERAL REPAIRS,2018,14/05/2021,712248,"2,124.00",Revenue,ABLE STEEL FABRICATIONS LTD,03010550
Fareham Borough Council,http://statistics.data.gov.uk/id/local-authority/24UE,HOUSING REVENUE ACCOUNT,BV06,RESPONSIVE & VOID MAINTENANCE,5901,DEPT OF DEPUTY CHIEF EXECUTIVE,PREMISES RELATED EXPENDITURE,2,"Works - Construction, Repair & Maintenance",39,GENERAL REPAIRS,2018,14/05/2021,712249,717.60,Revenue,HI-TECH PROPERTY SERVICES LTD,04690266
Fareham Borough Council,http://statistics.data.gov.uk/id/local-authority/24UE,HOUSING REVENUE ACCOUNT,BV06,RESPONSIVE & VOID MAINTENANCE,5901,DEPT OF DEPUTY CHIEF EXECUTIVE,PREMISES RELATED EXPENDITURE,2,"Works - Construction, Repair & Maintenance",39,GENERAL REPAIRS,2018,14/05/2021,712250,"2,263.58",Revenue,HI-TECH PROPERTY SERVICES LTD,04690266
Fareham Borough Council,http://statistics.data.gov.uk/id/local-authority/24UE,BALANCE SHEET,BS,BAL. SHEET - D.S.O.,BS1,BAL. SHEET - D.S.O.,TOTAL ASSETS LESS LIABILITIES,BS100,Vehicle Management,38,MATERIALS SUSPENSE ACCOUNT (VE,A016,14/05/2021,712253,"9,976.00",Balance Sheet,WESSEX PETROLEUM LTD,01024472
Fareham Borough Council,http://statistics.data.gov.uk/id/local-authority/24UE,PLANNING SERVICES,BV13,DEVELOPMENT CONTROL,BV13B,DEPT of STRATEGIC PLANNING and ENVIRONMENT,SUPPLIES & SERVICES,4,Environmental Services,18,CONSULTANTS FEES,4401,14/05/2021,712257,"1,300.00",Revenue,LOCKHART GARRATT LTD,3544434
Fareham Borough Council,http://statistics.data.gov.uk/id/local-authority/24UE,GENERAL FUND HOUSING,BV05,HOUSING ADVICE,BV05C,DEPT OF DEPUTY CHIEF EXECUTIVE,EMPLOYEES RELATED EXPENDITURE,1,Human Resources,26,AGENCY WORKERS,1050,14/05/2021,712258,"1,188.00",Revenue,G2 RECRUITMENT SOLUTIONS (G2V),08067630
Fareham Borough Council,http://statistics.data.gov.uk/id/local-authority/24UE,GENERAL FUND HOUSING,BV05,HOUSING ADVICE,BV05C,DEPT OF DEPUTY CHIEF EXECUTIVE,EMPLOYEES RELATED EXPENDITURE,1,Human Resources,26,AGENCY WORKERS,1050,14/05/2021,712259,"1,110.00",Revenue,G2 RECRUITMENT SOLUTIONS (G2V),08067630
Fareham Borough Council,http://statistics.data.gov.uk/id/local-authority/24UE,GENERAL FUND HOUSING,BV05,HOUSING ADVICE,BV05C,DEPT OF DEPUTY CHIEF EXECUTIVE,EMPLOYEES RELATED EXPENDITURE,1,Human Resources,26,AGENCY WORKERS,1050,14/05/2021,712260,"1,185.00",Revenue,G2 RECRUITMENT SOLUTIONS (G2V),08067630
Fareham Borough Council,http://statistics.data.gov.uk/id/local-authority/24UE,CENTRAL SERVICES,BV07,CENTRAL SERVICES TO THE PUBLIC,BV07B,DEPT OF SUPPORT SERVICES,SUPPLIES & SERVICES,4,Information Communication Technology,27,ICT DATA LINES,4535,14/05/2021,712262,295.00,Revenue,ASPIRE TECHNOLOGY SOLUTIONS LTD,06031628
Fareham Borough Council,http://statistics.data.gov.uk/id/local-authority/24UE,OTHER REVENUE ACCOUNTS,RV,CONTRACT SERVICES D.S.O.,RV14,DEPT of STRATEGIC PLANNING and ENVIRONMENT,SUPPLIES & SERVICES,4,Information Communication Technology,27,ICT DATA LINES,4535,14/05/2021,712262,355.00,Revenue,ASPIRE TECHNOLOGY SOLUTIONS LTD,06031628
Fareham Borough Council,http://statistics.data.gov.uk/id/local-authority/24UE,OTHER REVENUE ACCOUNTS,RV,NON WORK GROUP HOLDING ACCOUNT,RV18,DEPT OF SUPPORT SERVICES,SUPPLIES & SERVICES,4,Information Communication Technology,27,ICT DATA LINES,4535,14/05/2021,712262,32.00,Revenue,ASPIRE TECHNOLOGY SOLUTIONS LTD,06031628
Fareham Borough Council,http://statistics.data.gov.uk/id/local-authority/24UE,OTHER REVENUE ACCOUNTS,RV,NON WORK GROUP HOLDING ACCOUNT,RV18,DEPT OF SUPPORT SERVICES,SUPPLIES & SERVICES,4,Information Communication Technology,27,ICT DATA LINES,4535,14/05/2021,712262,32.00,Revenue,ASPIRE TECHNOLOGY SOLUTIONS LTD,06031628
Fareham Borough Council,http://statistics.data.gov.uk/id/local-authority/24UE,OTHER REVENUE ACCOUNTS,RV,NON WORK GROUP HOLDING ACCOUNT,RV18,DEPT OF SUPPORT SERVICES,SUPPLIES & SERVICES,4,Information Communication Technology,27,ICT DATA LINES,4535,14/05/2021,712262,364.00,Revenue,ASPIRE TECHNOLOGY SOLUTIONS LTD,06031628
Fareham Borough Council,http://statistics.data.gov.uk/id/local-authority/24UE,OTHER REVENUE ACCOUNTS,RV,NON WORK GROUP HOLDING ACCOUNT,RV18,DEPT OF SUPPORT SERVICES,SUPPLIES & SERVICES,4,Information Communication Technology,27,ICT DATA LINES,4535,14/05/2021,712262,508.00,Revenue,ASPIRE TECHNOLOGY SOLUTIONS LTD,06031628
Fareham Borough Council,http://statistics.data.gov.uk/id/local-authority/24UE,OTHER REVENUE ACCOUNTS,RV,NON WORK GROUP HOLDING ACCOUNT,RV18,DEPT OF SUPPORT SERVICES,SUPPLIES & SERVICES,4,Information Communication Technology,27,ICT DATA LINES,4535,14/05/2021,712262,508.00,Revenue,ASPIRE TECHNOLOGY SOLUTIONS LTD,06031628
Fareham Borough Council,http://statistics.data.gov.uk/id/local-authority/24UE,OTHER REVENUE ACCOUNTS,RV,NON WORK GROUP HOLDING ACCOUNT,RV18,DEPT OF SUPPORT SERVICES,SUPPLIES & SERVICES,4,Information Communication Technology,27,ICT DATA LINES,4535,14/05/2021,712262,300.00,Revenue,ASPIRE TECHNOLOGY SOLUTIONS LTD,06031628
Fareham Borough Council,http://statistics.data.gov.uk/id/local-authority/24UE,OTHER REVENUE ACCOUNTS,RV,NON WORK GROUP HOLDING ACCOUNT,RV18,DEPT OF SUPPORT SERVICES,SUPPLIES & SERVICES,4,Information Communication Technology,27,ICT DATA LINES,4535,14/05/2021,712262,368.00,Revenue,ASPIRE TECHNOLOGY SOLUTIONS LTD,06031628
Fareham Borough Council,http://statistics.data.gov.uk/id/local-authority/24UE,OTHER REVENUE ACCOUNTS,RV,NON WORK GROUP HOLDING ACCOUNT,RV18,DEPT OF SUPPORT SERVICES,SUPPLIES & SERVICES,4,Information Communication Technology,27,ICT DATA LINES,4535,14/05/2021,712262,319.00,Revenue,ASPIRE TECHNOLOGY SOLUTIONS LTD,06031628
Fareham Borough Council,http://statistics.data.gov.uk/id/local-authority/24UE,PLANNING SERVICES,BV13,ECONOMIC DEVELOPMENT,BV13E,DEPT of STRATEGIC PLANNING and ENVIRONMENT,SUPPLIES & SERVICES,4,Facilities & Management Services,19,PUBLICITY AND PROMOTION,4912,14/05/2021,712264,"6,580.00",Revenue,BAY MEDIA LTD,3788497
Fareham Borough Council,http://statistics.data.gov.uk/id/local-authority/24UE,ENVIRONMENT AND REGULATORY SER,BV03,WASTE COLLECTION,BV03G,STREETSCENE,TRANSPORT RELATED EXPENDITURE,3,Vehicle Management,38,ROUTINE REPAIRS VEHICLES/PLANT,3010,14/05/2021,712266,867.96,Revenue,DENNIS EAGLE LIMITED,03794455
Fareham Borough Council,http://statistics.data.gov.uk/id/local-authority/24UE,OTHER REVENUE ACCOUNTS,RV,NON WORK GROUP HOLDING ACCOUNT,RV18,DEPT OF SUPPORT SERVICES,EMPLOYEES RELATED EXPENDITURE,1,Healthcare,31,MEDICAL EXPENSES,1907,14/05/2021,712273,120.00,Revenue,CHARTERHOUSE COUNSELLING,
Fareham Borough Council,http://statistics.data.gov.uk/id/local-authority/24UE,OTHER REVENUE ACCOUNTS,RV,NON WORK GROUP HOLDING ACCOUNT,RV18,DEPT OF SUPPORT SERVICES,EMPLOYEES RELATED EXPENDITURE,1,Healthcare,31,MEDICAL EXPENSES,1907,14/05/2021,712273,820.00,Revenue,CHARTERHOUSE COUNSELLING,
Fareham Borough Council,http://statistics.data.gov.uk/id/local-authority/24UE,ENVIRONMENT AND REGULATORY SER,BV03,CEMETERIES CREM & MORTUARY,BV03A,STREETSCENE,PREMISES RELATED EXPENDITURE,2,"Works - Construction, Repair & Maintenance",39,GENERAL REPAIRS,2018,14/05/2021,712274,80.00,Revenue,M & B DRAIN SERVICES,
Fareham Borough Council,http://statistics.data.gov.uk/id/local-authority/24UE,ENVIRONMENT AND REGULATORY SER,BV03,ENVIRONMENTAL HEALTH,BV03C,STREETSCENE,PREMISES RELATED EXPENDITURE,2,"Works - Construction, Repair & Maintenance",39,GENERAL REPAIRS,2018,14/05/2021,712274,180.00,Revenue,M & B DRAIN SERVICES,
Fareham Borough Council,http://statistics.data.gov.uk/id/local-authority/24UE,HOUSING REVENUE ACCOUNT,BV06,RESPONSIVE & VOID MAINTENANCE,5901,DEPT OF DEPUTY CHIEF EXECUTIVE,PREMISES RELATED EXPENDITURE,2,"Works - Construction, Repair & Maintenance",39,GENERAL REPAIRS,2018,14/05/2021,712274,"1,200.00",Revenue,M & B DRAIN SERVICES,
Fareham Borough Council,http://statistics.data.gov.uk/id/local-authority/24UE,OTHER REVENUE ACCOUNTS,RV,NON WORK GROUP HOLDING ACCOUNT,RV18,DEPT of STRATEGIC PLANNING and ENVIRONMENT,PREMISES RELATED EXPENDITURE,2,"Works - Construction, Repair & Maintenance",39,GENERAL REPAIRS,2018,14/05/2021,712274,40.00,Revenue,M & B DRAIN SERVICES,
Fareham Borough Council,http://statistics.data.gov.uk/id/local-authority/24UE,ENVIRONMENT AND REGULATORY SER,BV03,CEMETERIES CREM & MORTUARY,BV03A,STREETSCENE,PREMISES RELATED EXPENDITURE,2,"Works - Construction, Repair & Maintenance",39,GENERAL REPAIRS,2018,14/05/2021,712334,712.50,Revenue,METRO ROD LTD,04235803
Fareham Borough Council,http://statistics.data.gov.uk/id/local-authority/24UE,HOUSING REVENUE ACCOUNT,BV06,RESPONSIVE & VOID MAINTENANCE,5901,DEPT OF DEPUTY CHIEF EXECUTIVE,PREMISES RELATED EXPENDITURE,2,"Works - Construction, Repair & Maintenance",39,GENERAL REPAIRS,2018,14/05/2021,712334,65.50,Revenue,METRO ROD LTD,04235803
Fareham Borough Council,http://statistics.data.gov.uk/id/local-authority/24UE,OTHER REVENUE ACCOUNTS,RV,NON WORK GROUP HOLDING ACCOUNT,RV18,DEPT of STRATEGIC PLANNING and ENVIRONMENT,SUPPLIES & SERVICES,4,Domestic Goods,16,FURNITURE & EQUIPT. PURCHASES,4000,14/05/2021,712343,800.00,Revenue,AQUA COOLING HIRE LIMITED,11342949
Fareham Borough Council,http://statistics.data.gov.uk/id/local-authority/24UE,OTHER REVENUE ACCOUNTS,RV,NON WORK GROUP HOLDING ACCOUNT,RV18,DEPT of STRATEGIC PLANNING and ENVIRONMENT,SUPPLIES & SERVICES,4,Domestic Goods,16,FURNITURE & EQUIPT. PURCHASES,4000,14/05/2021,712344,800.00,Revenue,AQUA COOLING HIRE LIMITED,11342949
Fareham Borough Council,http://statistics.data.gov.uk/id/local-authority/24UE,CULTURAL AND RELATED SERVICES,BV09,CULTURE AND HERITAGE,BV09A,DEPT OF LEISURE & COMMUNITY,PREMISES RELATED EXPENDITURE,2,"Works - Construction, Repair & Maintenance",39,R & M OF BUILDINGS,2000,14/05/2021,712346,"3,567.18",Revenue,BCG ELECTRICAL SERVICES LIMITED,5097428
Fareham Borough Council,http://statistics.data.gov.uk/id/local-authority/24UE,CAPITAL PROGRAMME - HOUSING SERVICES,CP,NEW HOUSE BUILDING,CP10,CAPITAL - FAREHAM HOUSING CAPITAL,SUPPLIES & SERVICES,4,"Works - Construction, Repair & Maintenance",39,CONSULTANTS FEES,4401,14/05/2021,712355,"1,155.00",Capital,RGP DESIGN LTD,09674169
Fareham Borough Council,http://statistics.data.gov.uk/id/local-authority/24UE,CAPITAL PROGRAMME - OTHER SERVICES,CP,CAPITAL PROPERTY SERVICES,CP23,CAPITAL - FINANCE & RESOURCES CAPITAL,SUPPLIES & SERVICES,4,Consultancy,15,CONSULTANTS FEES,4401,14/05/2021,712356,"1,875.00",Capital,SHEPHERD BROMBLEY PARTNERSHIP LIMITED,8251351
Fareham Borough Council,http://statistics.data.gov.uk/id/local-authority/24UE,BALANCE SHEET,BS,BAL. SHEET - COLLECTION FUND,BS1,BAL. SHEET - COLLECTION FUND,PERSONAL ACCOUNTS,BS210,Local/Central Government,,HAMPSHIRE FIRE/RESCUE PRECEPT,P161,14/05/2021,712370,"292,317.00",Balance Sheet,HAMPSHIRE FIRE & RESCUE AUTHORITY,
Fareham Borough Council,http://statistics.data.gov.uk/id/local-authority/24UE,BALANCE SHEET,BS,BAL. SHEET - COLLECTION FUND,BS1,BAL. SHEET - COLLECTION FUND,PERSONAL ACCOUNTS,BS210,Local/Central Government,98,HAMPSHIRE C.C. PRECEPT ACCOUNT,P157,14/05/2021,712371,"5,269,862.00",Balance Sheet,HAMPSHIRE COUNTY COUNCIL,
Fareham Borough Council,http://statistics.data.gov.uk/id/local-authority/24UE,BALANCE SHEET,BS,BAL. SHEET - COLLECTION FUND,BS1,BAL. SHEET - COLLECTION FUND,PERSONAL ACCOUNTS,BS210,Local/Central Government,,HAMPSHIRE POLICE PRECEPT,P159,14/05/2021,712372,"834,047.00",Balance Sheet,POLICE & CRIME COMMISSIONER HAMPSHIRE,
Fareham Borough Council,http://statistics.data.gov.uk/id/local-authority/24UE,HOUSING REVENUE ACCOUNT,BV06,GENERAL ADMINISTRATION EXPENSE,5021,DEPT OF DEPUTY CHIEF EXECUTIVE,SUPPLIES & SERVICES,4,Unclassified,,TENANTS REMOVAL EXPENSES,4952,14/05/2021,712373,"1,591.50",Revenue,redacted data,
Fareham Borough Council,http://statistics.data.gov.uk/id/local-authority/24UE,HIGHWAYS ROADS AND TRANSPORT,BV12,PARKING SERVICES,BV12D,DEPT OF LEISURE & COMMUNITY,SUPPLIES & SERVICES,4,Information Communication Technology,27,FURNITURE & EQUIPT. PURCHASES,4000,14/05/2021,712376,"1,590.00",Revenue,redacted data,
Fareham Borough Council,http://statistics.data.gov.uk/id/local-authority/24UE,HIGHWAYS ROADS AND TRANSPORT,BV12,PARKING SERVICES,BV12D,DEPT OF LEISURE & COMMUNITY,SUPPLIES & SERVICES,4,Information Communication Technology,27,FURNITURE & EQUIPT. PURCHASES,4000,14/05/2021,712377,"1,319.30",Revenue,redacted data,
Fareham Borough Council,http://statistics.data.gov.uk/id/local-authority/24UE,GENERAL FUND HOUSING,BV05,HOMELESSNESS,BV05F,DEPT OF DEPUTY CHIEF EXECUTIVE,SUPPLIES & SERVICES,4,Social Community Care Supplies & Services,32,BED & BREAKFAST EXPENSES,4943,14/05/2021,712382,560.00,Revenue,SOUTH SEAA INN,
Fareham Borough Council,http://statistics.data.gov.uk/id/local-authority/24UE,GENERAL FUND HOUSING,BV05,HOMELESSNESS,BV05F,DEPT OF DEPUTY CHIEF EXECUTIVE,SUPPLIES & SERVICES,4,Social Community Care Supplies & Services,32,BED & BREAKFAST EXPENSES,4943,14/05/2021,712383,560.00,Revenue,SOUTH SEAA INN,
Fareham Borough Council,http://statistics.data.gov.uk/id/local-authority/24UE,GENERAL FUND HOUSING,BV05,HOMELESSNESS,BV05F,DEPT OF DEPUTY CHIEF EXECUTIVE,SUPPLIES & SERVICES,4,Social Community Care Supplies & Services,32,BED & BREAKFAST EXPENSES,4943,14/05/2021,712384,560.00,Revenue,SOUTH SEAA INN,
Fareham Borough Council,http://statistics.data.gov.uk/id/local-authority/24UE,PLANNING SERVICES,BV13,ENVIRONMENTAL INITIATIVES,BV13D,DEPT of STRATEGIC PLANNING and ENVIRONMENT,SUPPLIES & SERVICES,4,Local/Central Government,98,CONSULTANTS FEES,4401,14/05/2021,712400,"5,067.12",Revenue,HAVANT BOROUGH COUNCIL,
Fareham Borough Council,http://statistics.data.gov.uk/id/local-authority/24UE,CULTURAL AND RELATED SERVICES,BV09,RECREATION AND SPORT,BV09B,STREETSCENE,SUPPLIES & SERVICES,4,Sports & Playground Equipment & Maintenance,33,MATERIALS (OPERATIONAL),4007,14/05/2021,712401,"1,024.23",Revenue,G.B. SPORT & LEISURE,07524601
Fareham Borough Council,http://statistics.data.gov.uk/id/local-authority/24UE,CULTURAL AND RELATED SERVICES,BV09,RECREATION AND SPORT,BV09B,STREETSCENE,SUPPLIES & SERVICES,4,Sports & Playground Equipment & Maintenance,33,MATERIALS (OPERATIONAL),4007,14/05/2021,712403,614.00,Revenue,HAGS- SMP LIMITED,00908021
Fareham Borough Council,http://statistics.data.gov.uk/id/local-authority/24UE,CULTURAL AND RELATED SERVICES,BV09,RECREATION AND SPORT,BV09B,STREETSCENE,SUPPLIES & SERVICES,4,Sports & Playground Equipment & Maintenance,33,MATERIALS (OPERATIONAL),4007,14/05/2021,712403,25.00,Revenue,HAGS- SMP LIMITED,00908021
Fareham Borough Council,http://statistics.data.gov.uk/id/local-authority/24UE,CULTURAL AND RELATED SERVICES,BV09,RECREATION AND SPORT,BV09B,STREETSCENE,SUPPLIES & SERVICES,4,Highway Equipment & Materials�,23,FURNITURE & EQUIPT. PURCHASES,4000,14/05/2021,712407,839.62,Revenue,SIGNWAY SUPPLIES,01450039
Fareham Borough Council,http://statistics.data.gov.uk/id/local-authority/24UE,ENVIRONMENT AND REGULATORY SER,BV03,WASTE COLLECTION,BV03G,STREETSCENE,EMPLOYEES RELATED EXPENDITURE,1,Human Resources,26,AGENCY WORKERS,1050,14/05/2021,712408,297.22,Revenue,THE BEST CONNECTION GROUP LTD,2600534
Fareham Borough Council,http://statistics.data.gov.uk/id/local-authority/24UE,ENVIRONMENT AND REGULATORY SER,BV03,WASTE COLLECTION,BV03G,STREETSCENE,EMPLOYEES RELATED EXPENDITURE,1,Human Resources,26,AGENCY WORKERS,1050,14/05/2021,712408,499.87,Revenue,THE BEST CONNECTION GROUP LTD,2600534
Fareham Borough Council,http://statistics.data.gov.uk/id/local-authority/24UE,ENVIRONMENT AND REGULATORY SER,BV03,WASTE COLLECTION,BV03G,STREETSCENE,EMPLOYEES RELATED EXPENDITURE,1,Human Resources,26,AGENCY WORKERS,1050,14/05/2021,712410,615.99,Revenue,BERRY RECRUITMENT LIMITED,07036111
Fareham Borough Council,http://statistics.data.gov.uk/id/local-authority/24UE,ENVIRONMENT AND REGULATORY SER,BV03,WASTE COLLECTION,BV03G,STREETSCENE,EMPLOYEES RELATED EXPENDITURE,1,Human Resources,26,AGENCY WORKERS,1050,14/05/2021,712410,228.15,Revenue,BERRY RECRUITMENT LIMITED,07036111
Fareham Borough Council,http://statistics.data.gov.uk/id/local-authority/24UE,ENVIRONMENT AND REGULATORY SER,BV03,WASTE COLLECTION,BV03G,STREETSCENE,EMPLOYEES RELATED EXPENDITURE,1,Human Resources,26,AGENCY WORKERS,1050,14/05/2021,712411,631.20,Revenue,BERRY RECRUITMENT LIMITED,07036111
Fareham Borough Council,http://statistics.data.gov.uk/id/local-authority/24UE,ENVIRONMENT AND REGULATORY SER,BV03,WASTE COLLECTION,BV03G,STREETSCENE,EMPLOYEES RELATED EXPENDITURE,1,Human Resources,26,AGENCY WORKERS,1050,14/05/2021,712412,410.66,Revenue,BERRY RECRUITMENT LIMITED,07036111
Fareham Borough Council,http://statistics.data.gov.uk/id/local-authority/24UE,ENVIRONMENT AND REGULATORY SER,BV03,WASTE COLLECTION,BV03G,STREETSCENE,EMPLOYEES RELATED EXPENDITURE,1,Human Resources,26,AGENCY WORKERS,1050,14/05/2021,712412,114.07,Revenue,BERRY RECRUITMENT LIMITED,07036111
Fareham Borough Council,http://statistics.data.gov.uk/id/local-authority/24UE,ENVIRONMENT AND REGULATORY SER,BV03,WASTE COLLECTION,BV03G,STREETSCENE,EMPLOYEES RELATED EXPENDITURE,1,Human Resources,26,AGENCY WORKERS,1050,14/05/2021,712412,106.47,Revenue,BERRY RECRUITMENT LIMITED,07036111
Fareham Borough Council,http://statistics.data.gov.uk/id/local-authority/24UE,ENVIRONMENT AND REGULATORY SER,BV03,WASTE COLLECTION,BV03G,STREETSCENE,EMPLOYEES RELATED EXPENDITURE,1,Human Resources,26,AGENCY WORKERS,1050,14/05/2021,712413,159.70,Revenue,BERRY RECRUITMENT LIMITED,07036111
Fareham Borough Council,http://statistics.data.gov.uk/id/local-authority/24UE,ENVIRONMENT AND REGULATORY SER,BV03,WASTE COLLECTION,BV03G,STREETSCENE,EMPLOYEES RELATED EXPENDITURE,1,Human Resources,26,AGENCY WORKERS,1050,14/05/2021,712413,342.22,Revenue,BERRY RECRUITMENT LIMITED,07036111
Fareham Borough Council,http://statistics.data.gov.uk/id/local-authority/24UE,CENTRAL SERVICES,BV07,CENTRAL SERVICES TO THE PUBLIC,BV07B,DEPT OF SUPPORT SERVICES,SUPPLIES & SERVICES,4,Mail Services�,30,POSTAGES,4500,21/05/2021,712662,1.16,Revenue,ROYAL MAIL,04138203
Fareham Borough Council,http://statistics.data.gov.uk/id/local-authority/24UE,CENTRAL SERVICES,BV07,CENTRAL SERVICES TO THE PUBLIC,BV07B,DEPT OF SUPPORT SERVICES,SUPPLIES & SERVICES,4,Mail Services�,30,POSTAGES,4500,21/05/2021,712662,-1.16,Revenue,ROYAL MAIL,04138203
Fareham Borough Council,http://statistics.data.gov.uk/id/local-authority/24UE,CENTRAL SERVICES,BV07,CENTRAL SERVICES TO THE PUBLIC,BV07B,DEPT OF SUPPORT SERVICES,SUPPLIES & SERVICES,4,Mail Services�,30,POSTAGES,4500,21/05/2021,712662,"6,214.76",Revenue,ROYAL MAIL,04138203
Fareham Borough Council,http://statistics.data.gov.uk/id/local-authority/24UE,HOUSING REVENUE ACCOUNT,BV06,GENERAL ADMINISTRATION EXPENSE,5021,DEPT OF DEPUTY CHIEF EXECUTIVE,PREMISES RELATED EXPENDITURE,2,Cleaning & Janitorial,13,CONTRACT CLEANING - GENERAL,2700,21/05/2021,712663,"3,800.00",Revenue,SORTED BY SAWKINS T/A THE CLUTTER QUEEN,11923289
Fareham Borough Council,http://statistics.data.gov.uk/id/local-authority/24UE,HOUSING REVENUE ACCOUNT,BV06,GENERAL ADMINISTRATION EXPENSE,5021,DEPT OF DEPUTY CHIEF EXECUTIVE,SUPPLIES & SERVICES,4,Facilities & Management Services,19,EXTERNAL PRINTING,4310,21/05/2021,712667,"1,386.63",Revenue,BLACKMORE LTD,3260753
Fareham Borough Council,http://statistics.data.gov.uk/id/local-authority/24UE,HOUSING REVENUE ACCOUNT,BV06,GENERAL ADMINISTRATION EXPENSE,5021,DEPT OF DEPUTY CHIEF EXECUTIVE,SUPPLIES & SERVICES,4,Facilities & Management Services,19,EXTERNAL PRINTING,4310,21/05/2021,712667,"1,287.00",Revenue,BLACKMORE LTD,3260753
Fareham Borough Council,http://statistics.data.gov.uk/id/local-authority/24UE,CAPITAL PROGRAMME - OTHER SERVICES,CP,CAPITAL PROPERTY SERVICES,CP23,CAPITAL - FINANCE & RESOURCES CAPITAL,SUPPLIES & SERVICES,4,Building Construction Materials,10,EQUIPMENT - SIGNS,4015,21/05/2021,712670,"12,284.78",Capital,ALPHA SIGN SYSTEMS LIMITED,6106440
Fareham Borough Council,http://statistics.data.gov.uk/id/local-authority/24UE,OTHER REVENUE ACCOUNTS,RV,NON WORK GROUP HOLDING ACCOUNT,RV18,DEPT OF SUPPORT SERVICES,SUPPLIES & SERVICES,4,Information Communication Technology,27,ICT SOFTWARE LICENCES,4530,21/05/2021,712671,"1,252.20",Revenue,redacted data,
Fareham Borough Council,http://statistics.data.gov.uk/id/local-authority/24UE,CAPITAL PROGRAMME - OTHER SERVICES,CP,CAPITAL ICT SCHEMES,CP23,DEPT OF SUPPORT SERVICES,SUPPLIES & SERVICES,4,Financial Services,20,ICT SOFTWARE LICENCES,4530,21/05/2021,712672,"3,967.50",Capital,CAPITA BUSINESS SERVICES LTD,02299747
Fareham Borough Council,http://statistics.data.gov.uk/id/local-authority/24UE,CAPITAL PROGRAMME - OTHER SERVICES,CP,CAPITAL ICT SCHEMES,CP23,DEPT OF SUPPORT SERVICES,SUPPLIES & SERVICES,4,Financial Services,20,ICT SOFTWARE LICENCES,4530,21/05/2021,712673,"1,327.80",Capital,CAPITA BUSINESS SERVICES LTD,02299747
Fareham Borough Council,http://statistics.data.gov.uk/id/local-authority/24UE,OTHER REVENUE ACCOUNTS,RV,CONTRACT SERVICES D.S.O.,RV14,DEPT of STRATEGIC PLANNING and ENVIRONMENT,SUPPLIES & SERVICES,4,Consultancy,15,STRUCTURAL ENGINEERS FEES,4405,21/05/2021,712679,"5,022.50",Revenue,RUCK CONSULTANCY LIMITED,9335936
Fareham Borough Council,http://statistics.data.gov.uk/id/local-authority/24UE,CULTURAL AND RELATED SERVICES,BV09,RECREATION AND SPORT,BV09B,STREETSCENE,SUPPLIES & SERVICES,4,Vehicle Management,38,MATERIALS (OPERATIONAL),4007,21/05/2021,712683,767.85,Revenue,SPALDINGS (U K) LTD,01558147
Fareham Borough Council,http://statistics.data.gov.uk/id/local-authority/24UE,PLANNING SERVICES,BV13,DEVELOPMENT CONTROL,BV13B,DEPT of STRATEGIC PLANNING and ENVIRONMENT,PREMISES RELATED EXPENDITURE,2,Horticultural,24,R&M OF TREE PRESERVATION,2063,21/05/2021,712686,980.00,Revenue,TITCHFIELD TREE SERVICES LTD,9011233
Fareham Borough Council,http://statistics.data.gov.uk/id/local-authority/24UE,CULTURAL AND RELATED SERVICES,BV09,RECREATION AND SPORT,BV09B,STREETSCENE,PREMISES RELATED EXPENDITURE,2,Horticultural,24,R&M OF GROUNDS,2060,21/05/2021,712688,822.05,Revenue,BOURNE AMENITY LTD,3453821
Fareham Borough Council,http://statistics.data.gov.uk/id/local-authority/24UE,CULTURAL AND RELATED SERVICES,BV09,CULTURE AND HERITAGE,BV09A,STREETSCENE,PREMISES RELATED EXPENDITURE,2,Cleaning & Janitorial,13,CONTRACT CLEANING - GENERAL,2700,21/05/2021,712690,"1,137.48",Revenue,HI-SPEC FACILITIES SERVICES PLC,4373379
Fareham Borough Council,http://statistics.data.gov.uk/id/local-authority/24UE,CULTURAL AND RELATED SERVICES,BV09,CULTURE AND HERITAGE,BV09A,STREETSCENE,PREMISES RELATED EXPENDITURE,2,Cleaning & Janitorial,13,CONTRACT CLEANING - GENERAL,2700,21/05/2021,712690,"1,893.75",Revenue,HI-SPEC FACILITIES SERVICES PLC,4373379
Fareham Borough Council,http://statistics.data.gov.uk/id/local-authority/24UE,CULTURAL AND RELATED SERVICES,BV09,RECREATION AND SPORT,BV09B,STREETSCENE,PREMISES RELATED EXPENDITURE,2,Cleaning & Janitorial,13,CONTRACT CLEANING - GENERAL,2700,21/05/2021,712690,"1,466.13",Revenue,HI-SPEC FACILITIES SERVICES PLC,4373379
Fareham Borough Council,http://statistics.data.gov.uk/id/local-authority/24UE,CULTURAL AND RELATED SERVICES,BV09,RECREATION AND SPORT,BV09B,STREETSCENE,PREMISES RELATED EXPENDITURE,2,Cleaning & Janitorial,13,CONTRACT CLEANING - GENERAL,2700,21/05/2021,712690,96.26,Revenue,HI-SPEC FACILITIES SERVICES PLC,4373379
Fareham Borough Council,http://statistics.data.gov.uk/id/local-authority/24UE,ENVIRONMENT AND REGULATORY SER,BV03,STREET CLEANSING,BV03F,STREETSCENE,PREMISES RELATED EXPENDITURE,2,Cleaning & Janitorial,13,CONTRACT CLEANING - GENERAL,2700,21/05/2021,712690,"1,279.52",Revenue,HI-SPEC FACILITIES SERVICES PLC,4373379
Fareham Borough Council,http://statistics.data.gov.uk/id/local-authority/24UE,ENVIRONMENT AND REGULATORY SER,BV03,ENVIRONMENTAL HEALTH,BV03C,STREETSCENE,PREMISES RELATED EXPENDITURE,2,Cleaning & Janitorial,13,CONTRACT CLEANING - GENERAL,2700,21/05/2021,712690,"10,416.41",Revenue,HI-SPEC FACILITIES SERVICES PLC,4373379
Fareham Borough Council,http://statistics.data.gov.uk/id/local-authority/24UE,HOUSING REVENUE ACCOUNT,BV06,COMMUNAL CARETAKING & CLEANING,5027,DEPT OF DEPUTY CHIEF EXECUTIVE,PREMISES RELATED EXPENDITURE,2,Cleaning & Janitorial,13,CONTRACT CLEANING - GENERAL,2700,21/05/2021,712690,"13,198.01",Revenue,HI-SPEC FACILITIES SERVICES PLC,4373379
Fareham Borough Council,http://statistics.data.gov.uk/id/local-authority/24UE,HOUSING REVENUE ACCOUNT,BV06,COMMUNAL CARETAKING & CLEANING,5027,DEPT OF DEPUTY CHIEF EXECUTIVE,PREMISES RELATED EXPENDITURE,2,Cleaning & Janitorial,13,CONTRACT CLEANING - GENERAL,2700,21/05/2021,712690,65.00,Revenue,HI-SPEC FACILITIES SERVICES PLC,4373379
Fareham Borough Council,http://statistics.data.gov.uk/id/local-authority/24UE,HOUSING REVENUE ACCOUNT,BV06,COMMUNAL CARETAKING & CLEANING,5027,DEPT OF DEPUTY CHIEF EXECUTIVE,PREMISES RELATED EXPENDITURE,2,Cleaning & Janitorial,13,CONTRACT CLEANING - GENERAL,2700,21/05/2021,712690,40.00,Revenue,HI-SPEC FACILITIES SERVICES PLC,4373379
Fareham Borough Council,http://statistics.data.gov.uk/id/local-authority/24UE,OTHER REVENUE ACCOUNTS,RV,CONTRACT SERVICES D.S.O.,RV14,DEPT of STRATEGIC PLANNING and ENVIRONMENT,PREMISES RELATED EXPENDITURE,2,Cleaning & Janitorial,13,CONTRACT CLEANING - GENERAL,2700,21/05/2021,712690,412.55,Revenue,HI-SPEC FACILITIES SERVICES PLC,4373379
Fareham Borough Council,http://statistics.data.gov.uk/id/local-authority/24UE,OTHER REVENUE ACCOUNTS,RV,NON WORK GROUP HOLDING ACCOUNT,RV18,DEPT of STRATEGIC PLANNING and ENVIRONMENT,PREMISES RELATED EXPENDITURE,2,Cleaning & Janitorial,13,CONTRACT CLEANING - GENERAL,2700,21/05/2021,712690,231.63,Revenue,HI-SPEC FACILITIES SERVICES PLC,4373379
Fareham Borough Council,http://statistics.data.gov.uk/id/local-authority/24UE,OTHER REVENUE ACCOUNTS,RV,NON WORK GROUP HOLDING ACCOUNT,RV18,DEPT of STRATEGIC PLANNING and ENVIRONMENT,PREMISES RELATED EXPENDITURE,2,Cleaning & Janitorial,13,CONTRACT CLEANING - GENERAL,2700,21/05/2021,712690,"1,100.04",Revenue,HI-SPEC FACILITIES SERVICES PLC,4373379
Fareham Borough Council,http://statistics.data.gov.uk/id/local-authority/24UE,BALANCE SHEET,BS,BAL. SHEET - D.S.O.,BS1,BAL. SHEET - D.S.O.,TOTAL ASSETS LESS LIABILITIES,BS100,Vehicle Management,38,MATERIALS SUSPENSE ACCOUNT (VE,A016,21/05/2021,712693,"10,855.90",Balance Sheet,WESSEX PETROLEUM LTD,01024472
Fareham Borough Council,http://statistics.data.gov.uk/id/local-authority/24UE,CULTURAL AND RELATED SERVICES,BV09,RECREATION AND SPORT,BV09B,STREETSCENE,SUPPLIES & SERVICES,4,Environmental Services,18,SUB-CONTRACTORS CHARGES,4432,21/05/2021,712694,300.00,Revenue,L&S WASTE MANAGEMENT LTD,03475329
Fareham Borough Council,http://statistics.data.gov.uk/id/local-authority/24UE,CULTURAL AND RELATED SERVICES,BV09,RECREATION AND SPORT,BV09B,STREETSCENE,SUPPLIES & SERVICES,4,Environmental Services,18,SUB-CONTRACTORS CHARGES,4432,21/05/2021,712694,300.00,Revenue,L&S WASTE MANAGEMENT LTD,03475329
Fareham Borough Council,http://statistics.data.gov.uk/id/local-authority/24UE,CULTURAL AND RELATED SERVICES,BV09,RECREATION AND SPORT,BV09B,STREETSCENE,SUPPLIES & SERVICES,4,Environmental Services,18,SUB-CONTRACTORS CHARGES,4432,21/05/2021,712694,375.00,Revenue,L&S WASTE MANAGEMENT LTD,03475329
Fareham Borough Council,http://statistics.data.gov.uk/id/local-authority/24UE,CULTURAL AND RELATED SERVICES,BV09,RECREATION AND SPORT,BV09B,STREETSCENE,SUPPLIES & SERVICES,4,Environmental Services,18,SUB-CONTRACTORS CHARGES,4432,21/05/2021,712694,375.00,Revenue,L&S WASTE MANAGEMENT LTD,03475329
Fareham Borough Council,http://statistics.data.gov.uk/id/local-authority/24UE,OTHER REVENUE ACCOUNTS,RV,NON WORK GROUP HOLDING ACCOUNT,RV18,DEPT OF SUPPORT SERVICES,SUPPLIES & SERVICES,4,Information Communication Technology,27,ICT SOFTWARE LICENCES,4530,21/05/2021,712695,"7,034.48",Revenue,redacted data,
Fareham Borough Council,http://statistics.data.gov.uk/id/local-authority/24UE,HOUSING REVENUE ACCOUNT,BV06,RESPONSIVE & VOID MAINTENANCE,5901,DEPT OF DEPUTY CHIEF EXECUTIVE,PREMISES RELATED EXPENDITURE,2,"Works - Construction, Repair & Maintenance",39,VOID COSTS - NOT RECHARGEABLE,2011,21/05/2021,712701,"20,100.00",Revenue,L DEVINE & CO LTD,4213581
Fareham Borough Council,http://statistics.data.gov.uk/id/local-authority/24UE,OTHER REVENUE ACCOUNTS,RV,NON WORK GROUP HOLDING ACCOUNT,RV18,DEPT OF SUPPORT SERVICES,SUPPLIES & SERVICES,4,Consultancy,15,ICT CLOUD,4536,21/05/2021,712715,865.74,Revenue,BOTTOMLINE TECHNOLOGIES LTD,03693514
Fareham Borough Council,http://statistics.data.gov.uk/id/local-authority/24UE,CAPITAL PROGRAMME - OTHER SERVICES,CP,CAPITAL ICT SCHEMES,CP23,DEPT OF SUPPORT SERVICES,SUPPLIES & SERVICES,4,Financial Services,20,ICT SOFTWARE LICENCES,4530,21/05/2021,712716,"-2,213.00",Capital,CAPITA BUSINESS SERVICES LTD,02299747
Fareham Borough Council,http://statistics.data.gov.uk/id/local-authority/24UE,CAPITAL PROGRAMME - OTHER SERVICES,CP,CAPITAL ICT SCHEMES,CP23,DEPT OF SUPPORT SERVICES,SUPPLIES & SERVICES,4,Financial Services,20,ICT SOFTWARE LICENCES,4530,21/05/2021,712717,"2,213.00",Capital,CAPITA BUSINESS SERVICES LTD,02299747
Fareham Borough Council,http://statistics.data.gov.uk/id/local-authority/24UE,CAPITAL PROGRAMME - OTHER SERVICES,CP,CAPITAL ICT SCHEMES,CP23,DEPT OF SUPPORT SERVICES,SUPPLIES & SERVICES,4,Financial Services,20,ICT SOFTWARE LICENCES,4530,21/05/2021,712718,"-6,612.50",Capital,CAPITA BUSINESS SERVICES LTD,02299747
Fareham Borough Council,http://statistics.data.gov.uk/id/local-authority/24UE,CAPITAL PROGRAMME - OTHER SERVICES,CP,CAPITAL ICT SCHEMES,CP23,DEPT OF SUPPORT SERVICES,SUPPLIES & SERVICES,4,Financial Services,20,ICT SOFTWARE LICENCES,4530,21/05/2021,712719,"6,612.50",Capital,CAPITA BUSINESS SERVICES LTD,02299747
Fareham Borough Council,http://statistics.data.gov.uk/id/local-authority/24UE,CORPORATE & DEMOCRATIC CORE,BV07A,CORPORATE MANAGEMENT,BV07AB,DEPT OF DEPUTY CHIEF EXECUTIVE,SUPPLIES & SERVICES,4,Financial Services,20,BANK CHARGES,4954,21/05/2021,712720,"3,405.13",Revenue,CAPITA BUSINESS SERVICES LTD,02299747
Fareham Borough Council,http://statistics.data.gov.uk/id/local-authority/24UE,CULTURAL AND RELATED SERVICES,BV09,RECREATION AND SPORT,BV09B,STREETSCENE,PREMISES RELATED EXPENDITURE,2,Unclassified,,R&M OF GROUNDS,2060,21/05/2021,712730,800.00,Revenue,PALMERSTON INDOOR BOWLS CLUB LTD,
Fareham Borough Council,http://statistics.data.gov.uk/id/local-authority/24UE,BALANCE SHEET,BS,BAL. SHEET - COLLECTION FUND,BS1,BAL. SHEET - COLLECTION FUND,PERSONAL ACCOUNTS,BS210,Local/Central Government,98,NNDR POOL - PAYMENTS,P140,21/05/2021,712734,"1,847,037.00",Balance Sheet,DCLG (Dept. for Communities & Local Govt.),
Fareham Borough Council,http://statistics.data.gov.uk/id/local-authority/24UE,BALANCE SHEET,BS,BAL. SHEET - COLLECTION FUND,BS1,BAL. SHEET - COLLECTION FUND,PERSONAL ACCOUNTS,BS210,Local/Central Government,98,NNDR POOL - PAYMENTS,P140,21/05/2021,712734,"-71,867.00",Balance Sheet,DCLG (Dept. for Communities & Local Govt.),
Fareham Borough Council,http://statistics.data.gov.uk/id/local-authority/24UE,BALANCE SHEET,BS,BAL. SHEET - COLLECTION FUND,BS1,BAL. SHEET - COLLECTION FUND,PERSONAL ACCOUNTS,BS210,Local/Central Government,98,NNDR POOL - PAYMENTS,P140,21/05/2021,712734,"-823,063.00",Balance Sheet,DCLG (Dept. for Communities & Local Govt.),
Fareham Borough Council,http://statistics.data.gov.uk/id/local-authority/24UE,BALANCE SHEET,BS,BAL. SHEET - COLLECTION FUND,BS1,BAL. SHEET - COLLECTION FUND,PERSONAL ACCOUNTS,BS210,Local/Central Government,98,NNDR POOL - PAYMENTS,P140,21/05/2021,712734,"25,731.00",Balance Sheet,DCLG (Dept. for Communities & Local Govt.),
Fareham Borough Council,http://statistics.data.gov.uk/id/local-authority/24UE,CAPITAL PROGRAMME - HOUSING SERVICES,CP,RENOVATION OF L.A. DWELLINGS,CP10,CAPITAL - FAREHAM HOUSING CAPITAL,PREMISES RELATED EXPENDITURE,2,"Works - Construction, Repair & Maintenance",39,VOID COSTS - NOT RECHARGEABLE,2011,28/05/2021,712735,"-1,429.44",Capital,MOUNTJOY LTD,06009150
Fareham Borough Council,http://statistics.data.gov.uk/id/local-authority/24UE,CAPITAL PROGRAMME - HOUSING SERVICES,CP,RENOVATION OF L.A. DWELLINGS,CP10,CAPITAL - FAREHAM HOUSING CAPITAL,PREMISES RELATED EXPENDITURE,2,"Works - Construction, Repair & Maintenance",39,VOID COSTS - NOT RECHARGEABLE,2011,28/05/2021,712736,"1,429.44",Capital,MOUNTJOY LTD,06009150
Fareham Borough Council,http://statistics.data.gov.uk/id/local-authority/24UE,CULTURAL AND RELATED SERVICES,BV09,RECREATION AND SPORT,BV09B,DEPT OF LEISURE & COMMUNITY,SUPPLIES & SERVICES,4,Art & Leisure Services,29,MANAGEMENT SERVICES,4422,21/05/2021,712739,"31,747.60",Revenue,SPORTS & LEISURE MANAGEMENT LTD CONSTRUCTION,02204085
Fareham Borough Council,http://statistics.data.gov.uk/id/local-authority/24UE,CORPORATE & DEMOCRATIC CORE,BV07A,CORPORATE MANAGEMENT,BV07AB,DEPT OF DEPUTY CHIEF EXECUTIVE,SUPPLIES & SERVICES,4,Consultancy,15,CONSULTANTS FEES,4401,21/05/2021,712747,"1,055.00",Revenue,PUBLIC SECTOR CONSULTANTS LTD,3915426
Fareham Borough Council,http://statistics.data.gov.uk/id/local-authority/24UE,GENERAL FUND HOUSING,BV05,HOMELESSNESS,BV05F,DEPT OF DEPUTY CHIEF EXECUTIVE,SUPPLIES & SERVICES,4,Social Community Care Supplies & Services,32,BED & BREAKFAST EXPENSES,4943,21/05/2021,712762,705.00,Revenue,PORTSMOUTH INNS,
Fareham Borough Council,http://statistics.data.gov.uk/id/local-authority/24UE,GENERAL FUND HOUSING,BV05,HOMELESSNESS,BV05F,DEPT OF DEPUTY CHIEF EXECUTIVE,SUPPLIES & SERVICES,4,Social Community Care Supplies & Services,32,BED & BREAKFAST EXPENSES,4943,21/05/2021,712763,560.00,Revenue,A GOSPORT INN,
Fareham Borough Council,http://statistics.data.gov.uk/id/local-authority/24UE,GENERAL FUND HOUSING,BV05,HOMELESSNESS,BV05F,DEPT OF DEPUTY CHIEF EXECUTIVE,SUPPLIES & SERVICES,4,Social Community Care Supplies & Services,32,BED & BREAKFAST EXPENSES,4943,21/05/2021,712764,560.00,Revenue,A GOSPORT INN,
Fareham Borough Council,http://statistics.data.gov.uk/id/local-authority/24UE,GENERAL FUND HOUSING,BV05,HOMELESSNESS,BV05F,DEPT OF DEPUTY CHIEF EXECUTIVE,SUPPLIES & SERVICES,4,Social Community Care Supplies & Services,32,BED & BREAKFAST EXPENSES,4943,21/05/2021,712765,560.00,Revenue,A GOSPORT INN,
Fareham Borough Council,http://statistics.data.gov.uk/id/local-authority/24UE,GENERAL FUND HOUSING,BV05,HOMELESSNESS,BV05F,DEPT OF DEPUTY CHIEF EXECUTIVE,SUPPLIES & SERVICES,4,Social Community Care Supplies & Services,32,BED & BREAKFAST EXPENSES,4943,21/05/2021,712766,630.00,Revenue,A GOSPORT INN,
Fareham Borough Council,http://statistics.data.gov.uk/id/local-authority/24UE,GENERAL FUND HOUSING,BV05,HOMELESSNESS,BV05F,DEPT OF DEPUTY CHIEF EXECUTIVE,SUPPLIES & SERVICES,4,Social Community Care Supplies & Services,32,BED & BREAKFAST EXPENSES,4943,21/05/2021,712767,630.00,Revenue,A GOSPORT INN,
Fareham Borough Council,http://statistics.data.gov.uk/id/local-authority/24UE,FINANCING & INVESTMENT I&E,BVB02,INVESTMENT PROPERTIES,BVB170,DEPT OF LEISURE & COMMUNITY,PREMISES RELATED EXPENDITURE,2,"Works - Construction, Repair & Maintenance",39,R & M OF BUILDINGS,2000,21/05/2021,712772,676.69,Revenue,BCG ELECTRICAL SERVICES LIMITED,5097428
Fareham Borough Council,http://statistics.data.gov.uk/id/local-authority/24UE,CAPITAL PROGRAMME - HOUSING SERVICES,CP,NEW HOUSE BUILDING,CP10,CAPITAL - FAREHAM HOUSING CAPITAL,SUPPLIES & SERVICES,4,"Works - Construction, Repair & Maintenance",39,CONSULTANTS FEES,4401,21/05/2021,712780,"7,500.00",Capital,MH ARCHITECTS,1994233
Fareham Borough Council,http://statistics.data.gov.uk/id/local-authority/24UE,CAPITAL PROGRAMME - HOUSING SERVICES,CP,NEW HOUSE BUILDING,CP10,CAPITAL - FAREHAM HOUSING CAPITAL,SUPPLIES & SERVICES,4,Consultancy,15,CONSULTANTS FEES,4401,21/05/2021,712781,588.00,Capital,SRE LTD,05573851
Fareham Borough Council,http://statistics.data.gov.uk/id/local-authority/24UE,CAPITAL PROGRAMME - HOUSING SERVICES,CP,NEW HOUSE BUILDING,CP10,CAPITAL - FAREHAM HOUSING CAPITAL,SUPPLIES & SERVICES,4,Consultancy,15,CONSULTANTS FEES,4401,21/05/2021,712782,765.00,Capital,SRE LTD,05573851
Fareham Borough Council,http://statistics.data.gov.uk/id/local-authority/24UE,OTHER REVENUE ACCOUNTS,RV,NON WORK GROUP HOLDING ACCOUNT,RV18,DEPT of STRATEGIC PLANNING and ENVIRONMENT,SUPPLIES & SERVICES,4,Environmental Services,18,TIPPING / INCINERATOR FEES,4425,21/05/2021,712783,564.00,Revenue,ZEBRA WASTE SKIP HIRE,01506942
Fareham Borough Council,http://statistics.data.gov.uk/id/local-authority/24UE,ENVIRONMENT AND REGULATORY SER,BV03,COAST PROTECTION,BV03B,DEPT of STRATEGIC PLANNING and ENVIRONMENT,SUPPLIES & SERVICES,4,Environmental Services,18,TOOLS & EQUIPMENT,4002,21/05/2021,712818,"1,400.00",Revenue,HEALTHMATIC LTD,2065014
Fareham Borough Council,http://statistics.data.gov.uk/id/local-authority/24UE,OTHER REVENUE ACCOUNTS,RV,CONTRACT SERVICES D.S.O.,RV14,DEPT OF DEPUTY CHIEF EXECUTIVE,SUPPLIES & SERVICES,4,Building Construction Materials,10,MATERIALS (OPERATIONAL),4007,21/05/2021,712822,963.36,Revenue,CITY PLUMBING SUPPLIES,2489546
Fareham Borough Council,http://statistics.data.gov.uk/id/local-authority/24UE,CULTURAL AND RELATED SERVICES,BV09,RECREATION AND SPORT,BV09B,STREETSCENE,SUPPLIES & SERVICES,4,Highway Equipment & Materials�,23,FURNITURE & EQUIPT. PURCHASES,4000,21/05/2021,712831,"3,732.06",Revenue,GLASDON U K LIMITED,02160576
Fareham Borough Council,http://statistics.data.gov.uk/id/local-authority/24UE,OTHER REVENUE ACCOUNTS,RV,NON WORK GROUP HOLDING ACCOUNT,RV18,STREETSCENE,SUPPLIES & SERVICES,4,Vehicle Management,38,MATERIALS (OPERATIONAL),4007,21/05/2021,712846,"2,445.40",Revenue,S R i,
Fareham Borough Council,http://statistics.data.gov.uk/id/local-authority/24UE,CAPITAL PROGRAMME - HOUSING SERVICES,CP,RENOVATION OF L.A. DWELLINGS,CP10,CAPITAL - FAREHAM HOUSING CAPITAL,PREMISES RELATED EXPENDITURE,2,Building Construction Materials,10,R & M OF BUILDINGS,2000,21/05/2021,712852,"5,730.00",Capital,IDEAL WINDOW SOLUTIONS LIMITED,3623785
Fareham Borough Council,http://statistics.data.gov.uk/id/local-authority/24UE,OTHER REVENUE ACCOUNTS,RV,CONTRACT SERVICES D.S.O.,RV14,DEPT OF DEPUTY CHIEF EXECUTIVE,SUPPLIES & SERVICES,4,Building Construction Materials,10,MATERIALS (OPERATIONAL),4007,21/05/2021,712853,982.27,Revenue,CITY PLUMBING SUPPLIES,2489546
Fareham Borough Council,http://statistics.data.gov.uk/id/local-authority/24UE,GENERAL FUND HOUSING,BV05,HOUSING ADVICE,BV05C,DEPT OF DEPUTY CHIEF EXECUTIVE,SUPPLIES & SERVICES,4,Local/Central Government,98,GRANTS AND SUBSCRIPTIONS,4700,21/05/2021,712860,"42,000.00",Revenue,HAMPSHIRE COUNTY COUNCIL,
Fareham Borough Council,http://statistics.data.gov.uk/id/local-authority/24UE,CAPITAL PROGRAMME - HOUSING SERVICES,CP,RENOVATION OF L.A. DWELLINGS,CP10,CAPITAL - FAREHAM HOUSING CAPITAL,PREMISES RELATED EXPENDITURE,2,Building Construction Materials,10,R & M OF BUILDINGS,2000,21/05/2021,712863,602.00,Capital,IDEAL WINDOW SOLUTIONS LIMITED,3623785
Fareham Borough Council,http://statistics.data.gov.uk/id/local-authority/24UE,CAPITAL PROGRAMME - HOUSING SERVICES,CP,RENOVATION OF L.A. DWELLINGS,CP10,CAPITAL - FAREHAM HOUSING CAPITAL,PREMISES RELATED EXPENDITURE,2,Building Construction Materials,10,R & M OF BUILDINGS,2000,21/05/2021,712864,838.50,Capital,IDEAL WINDOW SOLUTIONS LIMITED,3623785
Fareham Borough Council,http://statistics.data.gov.uk/id/local-authority/24UE,GENERAL FUND HOUSING,BV05,HOMELESSNESS,BV05F,DEPT OF DEPUTY CHIEF EXECUTIVE,SUPPLIES & SERVICES,4,Social Community Care Supplies & Services,32,BED & BREAKFAST EXPENSES,4943,21/05/2021,712876,560.00,Revenue,A GOSPORT INN,
Fareham Borough Council,http://statistics.data.gov.uk/id/local-authority/24UE,OTHER REVENUE ACCOUNTS,RV,NON WORK GROUP HOLDING ACCOUNT,RV18,DEPT OF SUPPORT SERVICES,EMPLOYEES RELATED EXPENDITURE,1,Unclassified,,MEDICAL EXPENSES,1907,21/05/2021,712879,500.00,Revenue,redacted data,
Fareham Borough Council,http://statistics.data.gov.uk/id/local-authority/24UE,CORPORATE & DEMOCRATIC CORE,BV07A,CORPORATE MANAGEMENT,BV07AB,DEPT OF SUPPORT SERVICES,EMPLOYEES RELATED EXPENDITURE,1,Financial Services,20,APPRENTICESHIP LEVY,1912,21/05/2021,712881,"4,215.00",Revenue,INLAND REVENUE,
Fareham Borough Council,http://statistics.data.gov.uk/id/local-authority/24UE,GENERAL FUND HOUSING,BV05,HOUSING ADVICE,BV05C,DEPT OF DEPUTY CHIEF EXECUTIVE,SUPPLIES & SERVICES,4,Unclassified,,LOCAL ASSISTANCE PAYMENT,4727,21/05/2021,712885,700.00,Revenue,redacted data,
Fareham Borough Council,http://statistics.data.gov.uk/id/local-authority/24UE,OTHER REVENUE ACCOUNTS,RV,CONTRACT SERVICES D.S.O.,RV14,DEPT of STRATEGIC PLANNING and ENVIRONMENT,SUPPLIES & SERVICES,4,Human Resources,26,GRANTS AND SUBSCRIPTIONS,4700,21/05/2021,712886,"3,571.40",Revenue,DISTRICT SURVEYORS ASSOCIATION LTD,5531889
Fareham Borough Council,http://statistics.data.gov.uk/id/local-authority/24UE,GENERAL FUND HOUSING,BV05,HOMELESSNESS,BV05F,DEPT OF DEPUTY CHIEF EXECUTIVE,SUPPLIES & SERVICES,4,Social Community Care Supplies & Services,32,CONSULTANTS FEES,4401,21/05/2021,712892,840.00,Revenue,WESTCOTE BED AND BREAKFAST,
Fareham Borough Council,http://statistics.data.gov.uk/id/local-authority/24UE,HOUSING REVENUE ACCOUNT,BV06,RESPONSIVE & VOID MAINTENANCE,5901,DEPT OF DEPUTY CHIEF EXECUTIVE,PREMISES RELATED EXPENDITURE,2,"Works - Construction, Repair & Maintenance",39,ELEC SERVICING & ASSOC REPAIRS,2025,21/05/2021,712894,"8,151.74",Revenue,BCG ELECTRICAL SERVICES LIMITED,5097428
Fareham Borough Council,http://statistics.data.gov.uk/id/local-authority/24UE,OTHER REVENUE ACCOUNTS,RV,NON WORK GROUP HOLDING ACCOUNT,RV18,DEPT OF SUPPORT SERVICES,SUPPLIES & SERVICES,4,Human Resources,26,GRANTS AND SUBSCRIPTIONS,4700,21/05/2021,712895,"2,820.00",Revenue,THOMAS INTERNATIONAL UK LTD,2518079
Fareham Borough Council,http://statistics.data.gov.uk/id/local-authority/24UE,CENTRAL SERVICES,BV07,CENTRAL SERVICES TO THE PUBLIC,BV07B,DEPT OF LEISURE & COMMUNITY,SUPPLIES & SERVICES,4,Unclassified,,FURNITURE & EQUIPT. PURCHASES,4000,21/05/2021,712897,886.36,Revenue,HAMPSHIRE COUNTY COUNCIL,
Fareham Borough Council,http://statistics.data.gov.uk/id/local-authority/24UE,FINANCING & INVESTMENT I&E,BVB02,INVESTMENT PROPERTIES,BVB170,DEPT of STRATEGIC PLANNING and ENVIRONMENT,SUPPLIES & SERVICES,4,Information Communication Technology,27,TELEPHONES,4510,21/05/2021,712898,13.74,Revenue,4SIGHT COMMUNICATIONS LTD,8160359
Fareham Borough Council,http://statistics.data.gov.uk/id/local-authority/24UE,CENTRAL SERVICES,BV07,CENTRAL SERVICES TO THE PUBLIC,BV07B,DEPT OF LEISURE & COMMUNITY,SUPPLIES & SERVICES,4,Information Communication Technology,27,TELEPHONES,4510,21/05/2021,712898,43.22,Revenue,4SIGHT COMMUNICATIONS LTD,8160359
Fareham Borough Council,http://statistics.data.gov.uk/id/local-authority/24UE,CULTURAL AND RELATED SERVICES,BV09,CULTURE AND HERITAGE,BV09A,DEPT OF LEISURE & COMMUNITY,SUPPLIES & SERVICES,4,Information Communication Technology,27,TELEPHONES,4510,21/05/2021,712898,0.20,Revenue,4SIGHT COMMUNICATIONS LTD,8160359
Fareham Borough Council,http://statistics.data.gov.uk/id/local-authority/24UE,CULTURAL AND RELATED SERVICES,BV09,RECREATION AND SPORT,BV09B,STREETSCENE,SUPPLIES & SERVICES,4,Information Communication Technology,27,TELEPHONES,4510,21/05/2021,712898,13.74,Revenue,4SIGHT COMMUNICATIONS LTD,8160359
Fareham Borough Council,http://statistics.data.gov.uk/id/local-authority/24UE,HIGHWAYS ROADS AND TRANSPORT,BV12,PARKING SERVICES,BV12D,DEPT OF LEISURE & COMMUNITY,SUPPLIES & SERVICES,4,Information Communication Technology,27,TELEPHONES,4510,21/05/2021,712898,57.56,Revenue,4SIGHT COMMUNICATIONS LTD,8160359
Fareham Borough Council,http://statistics.data.gov.uk/id/local-authority/24UE,HOUSING REVENUE ACCOUNT,BV06,GENERAL ADMINISTRATION EXPENSE,5021,DEPT OF DEPUTY CHIEF EXECUTIVE,SUPPLIES & SERVICES,4,Information Communication Technology,27,TELEPHONES,4510,21/05/2021,712898,34.99,Revenue,4SIGHT COMMUNICATIONS LTD,8160359
Fareham Borough Council,http://statistics.data.gov.uk/id/local-authority/24UE,HOUSING REVENUE ACCOUNT,BV06,SHELTERED HOUSING SERVICE,5031,DEPT OF DEPUTY CHIEF EXECUTIVE,SUPPLIES & SERVICES,4,Information Communication Technology,27,TELEPHONES,4510,21/05/2021,712898,254.83,Revenue,4SIGHT COMMUNICATIONS LTD,8160359
Fareham Borough Council,http://statistics.data.gov.uk/id/local-authority/24UE,HOUSING REVENUE ACCOUNT,BV06,SHELTERED HOUSING SERVICE,5031,DEPT OF DEPUTY CHIEF EXECUTIVE,PREMISES RELATED EXPENDITURE,2,Information Communication Technology,27,R & M ALARM SPEECH SYSTEMS,2027,21/05/2021,712898,156.48,Revenue,4SIGHT COMMUNICATIONS LTD,8160359
Fareham Borough Council,http://statistics.data.gov.uk/id/local-authority/24UE,HOUSING REVENUE ACCOUNT,BV06,OTHER COMMUNAL SERVICES,5034,DEPT OF DEPUTY CHIEF EXECUTIVE,SUPPLIES & SERVICES,4,Information Communication Technology,27,TELEPHONES,4510,21/05/2021,712898,13.74,Revenue,4SIGHT COMMUNICATIONS LTD,8160359
Fareham Borough Council,http://statistics.data.gov.uk/id/local-authority/24UE,OTHER REVENUE ACCOUNTS,RV,NON WORK GROUP HOLDING ACCOUNT,RV18,DEPT OF LEISURE & COMMUNITY,SUPPLIES & SERVICES,4,Information Communication Technology,27,TELEPHONES,4510,21/05/2021,712898,12.25,Revenue,4SIGHT COMMUNICATIONS LTD,8160359
Fareham Borough Council,http://statistics.data.gov.uk/id/local-authority/24UE,OTHER REVENUE ACCOUNTS,RV,NON WORK GROUP HOLDING ACCOUNT,RV18,DEPT OF SUPPORT SERVICES,SUPPLIES & SERVICES,4,Information Communication Technology,27,TELEPHONES,4510,21/05/2021,712898,749.16,Revenue,4SIGHT COMMUNICATIONS LTD,8160359
Fareham Borough Council,http://statistics.data.gov.uk/id/local-authority/24UE,OTHER REVENUE ACCOUNTS,RV,NON WORK GROUP HOLDING ACCOUNT,RV18,DEPT OF SUPPORT SERVICES,SUPPLIES & SERVICES,4,Information Communication Technology,27,TELEPHONES,4510,21/05/2021,712898,841.60,Revenue,4SIGHT COMMUNICATIONS LTD,8160359
Fareham Borough Council,http://statistics.data.gov.uk/id/local-authority/24UE,GENERAL FUND HOUSING,BV05,HOUSING ADVICE,BV05C,DEPT OF DEPUTY CHIEF EXECUTIVE,EMPLOYEES RELATED EXPENDITURE,1,Human Resources,26,AGENCY WORKERS,1050,21/05/2021,712908,"1,177.50",Revenue,G2 RECRUITMENT SOLUTIONS (G2V),08067630
Fareham Borough Council,http://statistics.data.gov.uk/id/local-authority/24UE,GENERAL FUND HOUSING,BV05,HOUSING ADVICE,BV05C,DEPT OF DEPUTY CHIEF EXECUTIVE,EMPLOYEES RELATED EXPENDITURE,1,Human Resources,26,AGENCY WORKERS,1050,21/05/2021,712909,"1,110.00",Revenue,G2 RECRUITMENT SOLUTIONS (G2V),08067630
Fareham Borough Council,http://statistics.data.gov.uk/id/local-authority/24UE,GENERAL FUND HOUSING,BV05,HOUSING ADVICE,BV05C,DEPT OF DEPUTY CHIEF EXECUTIVE,EMPLOYEES RELATED EXPENDITURE,1,Human Resources,26,AGENCY WORKERS,1050,21/05/2021,712910,"1,452.00",Revenue,G2 RECRUITMENT SOLUTIONS (G2V),08067630
Fareham Borough Council,http://statistics.data.gov.uk/id/local-authority/24UE,HIGHWAYS ROADS AND TRANSPORT,BV12,PARKING SERVICES,BV12D,DEPT OF LEISURE & COMMUNITY,SUPPLIES & SERVICES,4,Street & Traffic Management,35,FURNITURE & EQUIPT. PURCHASES,4000,21/05/2021,712911,131.50,Revenue,DESIGNA UK LTD,03464488
Fareham Borough Council,http://statistics.data.gov.uk/id/local-authority/24UE,HIGHWAYS ROADS AND TRANSPORT,BV12,PARKING SERVICES,BV12D,DEPT OF LEISURE & COMMUNITY,SUPPLIES & SERVICES,4,Street & Traffic Management,35,FURNITURE & EQUIPT. PURCHASES,4000,21/05/2021,712911,550.00,Revenue,DESIGNA UK LTD,03464488
Fareham Borough Council,http://statistics.data.gov.uk/id/local-authority/24UE,OTHER REVENUE ACCOUNTS,RV,NON WORK GROUP HOLDING ACCOUNT,RV18,DEPT OF SUPPORT SERVICES,SUPPLIES & SERVICES,4,Information Communication Technology,27,ICT HARDWARE,4532,28/05/2021,713152,12.95,Revenue,VP-AV LTD,2095600
Fareham Borough Council,http://statistics.data.gov.uk/id/local-authority/24UE,OTHER REVENUE ACCOUNTS,RV,NON WORK GROUP HOLDING ACCOUNT,RV18,DEPT OF SUPPORT SERVICES,SUPPLIES & SERVICES,4,Information Communication Technology,27,ICT HARDWARE,4532,28/05/2021,713152,295.00,Revenue,VP-AV LTD,2095600
Fareham Borough Council,http://statistics.data.gov.uk/id/local-authority/24UE,OTHER REVENUE ACCOUNTS,RV,NON WORK GROUP HOLDING ACCOUNT,RV18,DEPT OF SUPPORT SERVICES,SUPPLIES & SERVICES,4,Information Communication Technology,27,ICT HARDWARE,4532,28/05/2021,713152,"1,629.94",Revenue,VP-AV LTD,2095600
Fareham Borough Council,http://statistics.data.gov.uk/id/local-authority/24UE,OTHER REVENUE ACCOUNTS,RV,NON WORK GROUP HOLDING ACCOUNT,RV18,DEPT OF SUPPORT SERVICES,SUPPLIES & SERVICES,4,Building Construction Materials,10,ICT HARDWARE,4532,28/05/2021,713155,"1,652.00",Revenue,FLAKTGROUP UK LTD,09859894
Fareham Borough Council,http://statistics.data.gov.uk/id/local-authority/24UE,OTHER REVENUE ACCOUNTS,RV,NON WORK GROUP HOLDING ACCOUNT,RV18,STREETSCENE,SUPPLIES & SERVICES,4,Vehicle Management,38,MATERIALS (OPERATIONAL),4007,28/05/2021,713157,556.52,Revenue,SOLENT TRUCK PARTS LTD,3726877
Fareham Borough Council,http://statistics.data.gov.uk/id/local-authority/24UE,ENVIRONMENT AND REGULATORY SER,BV03,WASTE COLLECTION,BV03G,STREETSCENE,EMPLOYEES RELATED EXPENDITURE,1,Human Resources,26,AGENCY WORKERS,1050,28/05/2021,713158,542.05,Revenue,OFFICE ANGELS LTD,1985032
Fareham Borough Council,http://statistics.data.gov.uk/id/local-authority/24UE,GENERAL FUND HOUSING,BV05,HOUSING ADVICE,BV05C,DEPT OF DEPUTY CHIEF EXECUTIVE,SUPPLIES & SERVICES,4,Information Communication Technology,27,MOBILE TELEPHONES,4514,28/05/2021,713167,10.96,Revenue,VODAFONE LIMITED,01471587
Fareham Borough Council,http://statistics.data.gov.uk/id/local-authority/24UE,OTHER REVENUE ACCOUNTS,RV,NON WORK GROUP HOLDING ACCOUNT,RV18,DEPT OF SUPPORT SERVICES,SUPPLIES & SERVICES,4,Information Communication Technology,27,MOBILE TELEPHONES,4514,28/05/2021,713167,497.86,Revenue,VODAFONE LIMITED,01471587
Fareham Borough Council,http://statistics.data.gov.uk/id/local-authority/24UE,OTHER REVENUE ACCOUNTS,RV,NON WORK GROUP HOLDING ACCOUNT,RV18,DEPT OF SUPPORT SERVICES,SUPPLIES & SERVICES,4,Information Communication Technology,27,MOBILE TELEPHONES,4514,28/05/2021,713167,"2,740.00",Revenue,VODAFONE LIMITED,01471587
Fareham Borough Council,http://statistics.data.gov.uk/id/local-authority/24UE,CENTRAL SERVICES,BV07,CENTRAL SERVICES TO THE PUBLIC,BV07B,DEPT OF LEISURE & COMMUNITY,SUPPLIES & SERVICES,4,Information Communication Technology,27,TELEPHONES,4510,28/05/2021,713190,42.68,Revenue,BT PLC,1800000
Fareham Borough Council,http://statistics.data.gov.uk/id/local-authority/24UE,CULTURAL AND RELATED SERVICES,BV09,RECREATION AND SPORT,BV09B,STREETSCENE,SUPPLIES & SERVICES,4,Information Communication Technology,27,TELEPHONES,4510,28/05/2021,713190,11.98,Revenue,BT PLC,1800000
Fareham Borough Council,http://statistics.data.gov.uk/id/local-authority/24UE,HOUSING REVENUE ACCOUNT,BV06,SHELTERED HOUSING SERVICE,5031,DEPT OF DEPUTY CHIEF EXECUTIVE,SUPPLIES & SERVICES,4,Information Communication Technology,27,TELEPHONES,4510,28/05/2021,713190,154.38,Revenue,BT PLC,1800000
Fareham Borough Council,http://statistics.data.gov.uk/id/local-authority/24UE,HOUSING REVENUE ACCOUNT,BV06,SHELTERED HOUSING SERVICE,5031,DEPT OF DEPUTY CHIEF EXECUTIVE,PREMISES RELATED EXPENDITURE,2,Information Communication Technology,27,R & M ALARM SPEECH SYSTEMS,2027,28/05/2021,713190,30.70,Revenue,BT PLC,1800000
Fareham Borough Council,http://statistics.data.gov.uk/id/local-authority/24UE,HOUSING REVENUE ACCOUNT,BV06,OTHER COMMUNAL SERVICES,5034,DEPT OF DEPUTY CHIEF EXECUTIVE,SUPPLIES & SERVICES,4,Information Communication Technology,27,TELEPHONES,4510,28/05/2021,713190,98.20,Revenue,BT PLC,1800000
Fareham Borough Council,http://statistics.data.gov.uk/id/local-authority/24UE,OTHER REVENUE ACCOUNTS,RV,NON WORK GROUP HOLDING ACCOUNT,RV18,DEPT OF SUPPORT SERVICES,SUPPLIES & SERVICES,4,Information Communication Technology,27,TELEPHONES,4510,28/05/2021,713190,387.10,Revenue,BT PLC,1800000
Fareham Borough Council,http://statistics.data.gov.uk/id/local-authority/24UE,GENERAL FUND HOUSING,BV05,HOMELESSNESS,BV05F,DEPT OF DEPUTY CHIEF EXECUTIVE,SUPPLIES & SERVICES,4,Social Community Care Supplies & Services,32,BED & BREAKFAST EXPENSES,4943,28/05/2021,713206,560.00,Revenue,A GOSPORT INN,
Fareham Borough Council,http://statistics.data.gov.uk/id/local-authority/24UE,GENERAL FUND HOUSING,BV05,HOMELESSNESS,BV05F,DEPT OF DEPUTY CHIEF EXECUTIVE,SUPPLIES & SERVICES,4,Social Community Care Supplies & Services,32,BED & BREAKFAST EXPENSES,4943,28/05/2021,713207,560.00,Revenue,A GOSPORT INN,
Fareham Borough Council,http://statistics.data.gov.uk/id/local-authority/24UE,GENERAL FUND HOUSING,BV05,HOMELESSNESS,BV05F,DEPT OF DEPUTY CHIEF EXECUTIVE,SUPPLIES & SERVICES,4,Social Community Care Supplies & Services,32,BED & BREAKFAST EXPENSES,4943,28/05/2021,713210,630.00,Revenue,A GOSPORT INN,
Fareham Borough Council,http://statistics.data.gov.uk/id/local-authority/24UE,GENERAL FUND HOUSING,BV05,HOMELESSNESS,BV05F,DEPT OF DEPUTY CHIEF EXECUTIVE,SUPPLIES & SERVICES,4,Social Community Care Supplies & Services,32,BED & BREAKFAST EXPENSES,4943,28/05/2021,713211,630.00,Revenue,A GOSPORT INN,
Fareham Borough Council,http://statistics.data.gov.uk/id/local-authority/24UE,GENERAL FUND HOUSING,BV05,HOMELESSNESS,BV05F,DEPT OF DEPUTY CHIEF EXECUTIVE,SUPPLIES & SERVICES,4,Social Community Care Supplies & Services,32,BED & BREAKFAST EXPENSES,4943,28/05/2021,713212,560.00,Revenue,A GOSPORT INN,
Fareham Borough Council,http://statistics.data.gov.uk/id/local-authority/24UE,GENERAL FUND HOUSING,BV05,HOMELESSNESS,BV05F,DEPT OF DEPUTY CHIEF EXECUTIVE,SUPPLIES & SERVICES,4,Social Community Care Supplies & Services,32,BED & BREAKFAST EXPENSES,4943,28/05/2021,713215,560.00,Revenue,SOUTH SEAA INN,
Fareham Borough Council,http://statistics.data.gov.uk/id/local-authority/24UE,GENERAL FUND HOUSING,BV05,HOMELESSNESS,BV05F,DEPT OF DEPUTY CHIEF EXECUTIVE,SUPPLIES & SERVICES,4,Social Community Care Supplies & Services,32,BED & BREAKFAST EXPENSES,4943,28/05/2021,713217,560.00,Revenue,SOUTH SEAA INN,
Fareham Borough Council,http://statistics.data.gov.uk/id/local-authority/24UE,GENERAL FUND HOUSING,BV05,HOMELESSNESS,BV05F,DEPT OF DEPUTY CHIEF EXECUTIVE,SUPPLIES & SERVICES,4,Social Community Care Supplies & Services,32,BED & BREAKFAST EXPENSES,4943,28/05/2021,713227,575.75,Revenue,64 ALMA ROAD LTD,9616639
Fareham Borough Council,http://statistics.data.gov.uk/id/local-authority/24UE,CULTURAL AND RELATED SERVICES,BV09,RECREATION AND SPORT,BV09B,STREETSCENE,PREMISES RELATED EXPENDITURE,2,Utilities,37,GAS,2130,28/05/2021,713231,32.96,Revenue,TOTAL GAS & POWER LIMITED,2172239
Fareham Borough Council,http://statistics.data.gov.uk/id/local-authority/24UE,CULTURAL AND RELATED SERVICES,BV09,CULTURE AND HERITAGE,BV09A,DEPT OF LEISURE & COMMUNITY,PREMISES RELATED EXPENDITURE,2,Utilities,37,GAS,2130,28/05/2021,713231,807.38,Revenue,TOTAL GAS & POWER LIMITED,2172239
Fareham Borough Council,http://statistics.data.gov.uk/id/local-authority/24UE,HOUSING REVENUE ACCOUNT,BV06,GENERAL ADMINISTRATION EXPENSE,5021,DEPT OF DEPUTY CHIEF EXECUTIVE,PREMISES RELATED EXPENDITURE,2,Utilities,37,GAS,2130,28/05/2021,713231,943.59,Revenue,TOTAL GAS & POWER LIMITED,2172239
Fareham Borough Council,http://statistics.data.gov.uk/id/local-authority/24UE,HOUSING REVENUE ACCOUNT,BV06,GENERAL ADMINISTRATION EXPENSE,5021,DEPT OF DEPUTY CHIEF EXECUTIVE,PREMISES RELATED EXPENDITURE,2,Utilities,37,GAS,2130,28/05/2021,713231,"1,025.93",Revenue,TOTAL GAS & POWER LIMITED,2172239
Fareham Borough Council,http://statistics.data.gov.uk/id/local-authority/24UE,HOUSING REVENUE ACCOUNT,BV06,COMMUNAL HEATING SERVICES,5025,DEPT OF DEPUTY CHIEF EXECUTIVE,PREMISES RELATED EXPENDITURE,2,Utilities,37,GAS,2130,28/05/2021,713231,996.70,Revenue,TOTAL GAS & POWER LIMITED,2172239
Fareham Borough Council,http://statistics.data.gov.uk/id/local-authority/24UE,HOUSING REVENUE ACCOUNT,BV06,COMMUNAL HEATING SERVICES,5025,DEPT OF DEPUTY CHIEF EXECUTIVE,PREMISES RELATED EXPENDITURE,2,Utilities,37,GAS,2130,28/05/2021,713231,436.44,Revenue,TOTAL GAS & POWER LIMITED,2172239
Fareham Borough Council,http://statistics.data.gov.uk/id/local-authority/24UE,OTHER REVENUE ACCOUNTS,RV,NON WORK GROUP HOLDING ACCOUNT,RV18,DEPT of STRATEGIC PLANNING and ENVIRONMENT,PREMISES RELATED EXPENDITURE,2,Utilities,37,GAS,2130,28/05/2021,713231,"9,298.02",Revenue,TOTAL GAS & POWER LIMITED,2172239
Fareham Borough Council,http://statistics.data.gov.uk/id/local-authority/24UE,OTHER REVENUE ACCOUNTS,RV,NON WORK GROUP HOLDING ACCOUNT,RV18,DEPT of STRATEGIC PLANNING and ENVIRONMENT,PREMISES RELATED EXPENDITURE,2,Utilities,37,GAS,2130,28/05/2021,713231,560.35,Revenue,TOTAL GAS & POWER LIMITED,2172239
Fareham Borough Council,http://statistics.data.gov.uk/id/local-authority/24UE,BALANCE SHEET,BS,BAL. SHEET - GENERAL FUND,BS1,BAL. SHEET - GENERAL FUND,TOTAL ASSETS LESS LIABILITIES,BS100,Financial Services,20,INSURANCE SUSPENSE ACCOUNT,E608,28/05/2021,713236,"20,960.56",Balance Sheet,UNUM LIMITED,983768
Fareham Borough Council,http://statistics.data.gov.uk/id/local-authority/24UE,OTHER REVENUE ACCOUNTS,RV,CONTRACT SERVICES D.S.O.,RV14,DEPT OF DEPUTY CHIEF EXECUTIVE,SUPPLIES & SERVICES,4,Building Construction Materials,10,MATERIALS (OPERATIONAL),4007,28/05/2021,713237,670.09,Revenue,AKZONOBEL,02881641
Fareham Borough Council,http://statistics.data.gov.uk/id/local-authority/24UE,PLANNING SERVICES,BV13,DEVELOPMENT CONTROL,BV13B,DEPT of STRATEGIC PLANNING and ENVIRONMENT,PREMISES RELATED EXPENDITURE,2,Horticultural,24,R&M OF TREE PRESERVATION,2063,28/05/2021,713241,256.00,Revenue,CEDAR TREE SURGEONS,
Fareham Borough Council,http://statistics.data.gov.uk/id/local-authority/24UE,PLANNING SERVICES,BV13,DEVELOPMENT CONTROL,BV13B,DEPT of STRATEGIC PLANNING and ENVIRONMENT,PREMISES RELATED EXPENDITURE,2,Horticultural,24,R&M OF TREE PRESERVATION,2063,28/05/2021,713241,"2,534.50",Revenue,CEDAR TREE SURGEONS,
Fareham Borough Council,http://statistics.data.gov.uk/id/local-authority/24UE,HOUSING REVENUE ACCOUNT,BV06,MAINT OF LAWNS VERGES ETC,5030,DEPT OF DEPUTY CHIEF EXECUTIVE,PREMISES RELATED EXPENDITURE,2,Horticultural,24,R&M OF TREE PRESERVATION,2063,28/05/2021,713241,161.50,Revenue,CEDAR TREE SURGEONS,
Fareham Borough Council,http://statistics.data.gov.uk/id/local-authority/24UE,PLANNING SERVICES,BV13,DEVELOPMENT CONTROL,BV13B,DEPT of STRATEGIC PLANNING and ENVIRONMENT,PREMISES RELATED EXPENDITURE,2,Horticultural,24,R&M OF TREE PRESERVATION,2063,28/05/2021,713243,"2,200.14",Revenue,CLIMBERS WAY TREE CARE LTD,09154379
Fareham Borough Council,http://statistics.data.gov.uk/id/local-authority/24UE,PLANNING SERVICES,BV13,DEVELOPMENT CONTROL,BV13B,DEPT of STRATEGIC PLANNING and ENVIRONMENT,PREMISES RELATED EXPENDITURE,2,Human Resources,26,R&M OF TREE PRESERVATION,2063,28/05/2021,713244,578.00,Revenue,ARCADIAN LIVING LIMITED,05330604
Fareham Borough Council,http://statistics.data.gov.uk/id/local-authority/24UE,OTHER REVENUE ACCOUNTS,RV,CONTRACT SERVICES D.S.O.,RV14,DEPT OF DEPUTY CHIEF EXECUTIVE,SUPPLIES & SERVICES,4,Building Construction Materials,10,MATERIALS (OPERATIONAL),4007,28/05/2021,713248,578.38,Revenue,WILLIAMS TRADE SUPPLIES LTD,1864711
Fareham Borough Council,http://statistics.data.gov.uk/id/local-authority/24UE,CENTRAL SERVICES,BV07,CENTRAL SERVICES TO THE PUBLIC,BV07B,DEPT OF DEPUTY CHIEF EXECUTIVE,SUPPLIES & SERVICES,4,Information Communication Technology,27,ICT SOFTWARE LICENCES,4530,28/05/2021,713259,"1,250.00",Revenue,redacted data,
Fareham Borough Council,http://statistics.data.gov.uk/id/local-authority/24UE,HOUSING REVENUE ACCOUNT,BV06,RESPONSIVE & VOID MAINTENANCE,5901,DEPT OF DEPUTY CHIEF EXECUTIVE,PREMISES RELATED EXPENDITURE,2,"Works - Construction, Repair & Maintenance",39,VOID COSTS - NOT RECHARGEABLE,2011,28/05/2021,713260,"2,188.26",Revenue,JPC PROPERTY SERVICES LTD,4704385
Fareham Borough Council,http://statistics.data.gov.uk/id/local-authority/24UE,PLANNING SERVICES,BV13,PLANNING POLICY,BV13C,DEPT of STRATEGIC PLANNING and ENVIRONMENT,SUPPLIES & SERVICES,4,Consultancy,15,CONSULTANTS FEES,4401,28/05/2021,713262,"1,800.00",Revenue,MED PLANNING LTD,10709628
Fareham Borough Council,http://statistics.data.gov.uk/id/local-authority/24UE,HOUSING REVENUE ACCOUNT,BV06,RESPONSIVE & VOID MAINTENANCE,5901,DEPT OF DEPUTY CHIEF EXECUTIVE,PREMISES RELATED EXPENDITURE,2,"Works - Construction, Repair & Maintenance",39,VOID COSTS - NOT RECHARGEABLE,2011,28/05/2021,713263,"1,709.62",Revenue,JPC PROPERTY SERVICES LTD,4704385
Fareham Borough Council,http://statistics.data.gov.uk/id/local-authority/24UE,CAPITAL PROGRAMME - HOUSING SERVICES,CP,RENOVATION OF L.A. DWELLINGS,CP10,CAPITAL - FAREHAM HOUSING CAPITAL,SUPPLIES & SERVICES,4,Consultancy,15,SURVEYORS FEES,4416,28/05/2021,713270,"1,600.00",Capital,PMG BUILDING DESIGN & CONSULTANCY LTD,4698980
Fareham Borough Council,http://statistics.data.gov.uk/id/local-authority/24UE,ENVIRONMENT AND REGULATORY SER,BV03,WASTE COLLECTION,BV03G,STREETSCENE,EMPLOYEES RELATED EXPENDITURE,1,Human Resources,26,AGENCY WORKERS,1050,28/05/2021,713271,542.05,Revenue,OFFICE ANGELS LTD,1985032
Fareham Borough Council,http://statistics.data.gov.uk/id/local-authority/24UE,PLANNING SERVICES,BV13,PLANNING POLICY,BV13C,DEPT of STRATEGIC PLANNING and ENVIRONMENT,SUPPLIES & SERVICES,4,Local/Central Government,98,CONSULTANTS FEES,4401,28/05/2021,713273,671.00,Revenue,PORTSMOUTH CITY COUNCIL,
Fareham Borough Council,http://statistics.data.gov.uk/id/local-authority/24UE,HIGHWAYS ROADS AND TRANSPORT,BV12,PARKING SERVICES,BV12D,DEPT OF LEISURE & COMMUNITY,SUPPLIES & SERVICES,4,Street & Traffic Management,35,FURNITURE & EQUIPT. MAINT.,4030,28/05/2021,713278,215.00,Revenue,FLOWBIRD SMART CITY UK LTD,4869035
Fareham Borough Council,http://statistics.data.gov.uk/id/local-authority/24UE,HIGHWAYS ROADS AND TRANSPORT,BV12,PARKING SERVICES,BV12D,DEPT OF LEISURE & COMMUNITY,SUPPLIES & SERVICES,4,Street & Traffic Management,35,FURNITURE & EQUIPT. MAINT.,4030,28/05/2021,713278,97.20,Revenue,FLOWBIRD SMART CITY UK LTD,4869035
Fareham Borough Council,http://statistics.data.gov.uk/id/local-authority/24UE,HIGHWAYS ROADS AND TRANSPORT,BV12,PARKING SERVICES,BV12D,DEPT OF LEISURE & COMMUNITY,SUPPLIES & SERVICES,4,Street & Traffic Management,35,FURNITURE & EQUIPT. MAINT.,4030,28/05/2021,713278,215.00,Revenue,FLOWBIRD SMART CITY UK LTD,4869035
Fareham Borough Council,http://statistics.data.gov.uk/id/local-authority/24UE,HIGHWAYS ROADS AND TRANSPORT,BV12,PARKING SERVICES,BV12D,DEPT OF LEISURE & COMMUNITY,SUPPLIES & SERVICES,4,Street & Traffic Management,35,FURNITURE & EQUIPT. MAINT.,4030,28/05/2021,713278,390.00,Revenue,FLOWBIRD SMART CITY UK LTD,4869035
Fareham Borough Council,http://statistics.data.gov.uk/id/local-authority/24UE,HIGHWAYS ROADS AND TRANSPORT,BV12,PARKING SERVICES,BV12D,DEPT OF LEISURE & COMMUNITY,SUPPLIES & SERVICES,4,Street & Traffic Management,35,FURNITURE & EQUIPT. MAINT.,4030,28/05/2021,713278,97.20,Revenue,FLOWBIRD SMART CITY UK LTD,4869035
Fareham Borough Council,http://statistics.data.gov.uk/id/local-authority/24UE,HIGHWAYS ROADS AND TRANSPORT,BV12,PARKING SERVICES,BV12D,DEPT OF LEISURE & COMMUNITY,SUPPLIES & SERVICES,4,Street & Traffic Management,35,FURNITURE & EQUIPT. MAINT.,4030,28/05/2021,713278,156.00,Revenue,FLOWBIRD SMART CITY UK LTD,4869035
Fareham Borough Council,http://statistics.data.gov.uk/id/local-authority/24UE,BALANCE SHEET,BS,BAL. SHEET - D.S.O.,BS1,BAL. SHEET - D.S.O.,TOTAL ASSETS LESS LIABILITIES,BS100,Vehicle Management,38,MATERIALS SUSPENSE ACCOUNT (VE,A016,28/05/2021,713279,"15,403.01",Balance Sheet,WESSEX PETROLEUM LTD,01024472
Fareham Borough Council,http://statistics.data.gov.uk/id/local-authority/24UE,OTHER REVENUE ACCOUNTS,RV,NON WORK GROUP HOLDING ACCOUNT,RV18,STREETSCENE,SUPPLIES & SERVICES,4,Consultancy,15,CONSULTANTS FEES,4401,28/05/2021,713280,"1,190.00",Revenue,QAM SKILLS CENTRE LTD,08986685
Fareham Borough Council,http://statistics.data.gov.uk/id/local-authority/24UE,OTHER REVENUE ACCOUNTS,RV,NON WORK GROUP HOLDING ACCOUNT,RV18,STREETSCENE,SUPPLIES & SERVICES,4,Consultancy,15,CONSULTANTS FEES,4401,28/05/2021,713280,"1,190.00",Revenue,QAM SKILLS CENTRE LTD,08986685
Fareham Borough Council,http://statistics.data.gov.uk/id/local-authority/24UE,ENVIRONMENT AND REGULATORY SER,BV03,STREET CLEANSING,BV03F,STREETSCENE,TRANSPORT RELATED EXPENDITURE,3,Environmental Services,18,ROUTINE REPAIRS VEHICLES/PLANT,3010,28/05/2021,713284,"1,204.14",Revenue,AEBI SCHMIDT UK LTD,557725
Fareham Borough Council,http://statistics.data.gov.uk/id/local-authority/24UE,BALANCE SHEET,BS,BAL. SHEET - H.R.A.,BS1,BAL. SHEET - H.R.A.,BALANCES & RESERVES,BS190,Unclassified,,RECHARGE WRK SUSP. - INS.,E614,28/05/2021,713299,524.30,Balance Sheet,STEPHEN PENFOLD ASSOCIATES,
Fareham Borough Council,http://statistics.data.gov.uk/id/local-authority/24UE,BALANCE SHEET,BS,BAL. SHEET - H.R.A.,BS1,BAL. SHEET - H.R.A.,BALANCES & RESERVES,BS190,Unclassified,,RECHARGE WRK SUSP. - INS.,E614,28/05/2021,713300,"2,122.50",Balance Sheet,SC ARCHITECTURE,
Fareham Borough Council,http://statistics.data.gov.uk/id/local-authority/24UE,BALANCE SHEET,BS,BAL. SHEET - H.R.A.,BS1,BAL. SHEET - H.R.A.,BALANCES & RESERVES,BS190,Unclassified,,RECHARGE WRK SUSP. - INS.,E614,28/05/2021,713301,462.00,Balance Sheet,SC ARCHITECTURE,
Fareham Borough Council,http://statistics.data.gov.uk/id/local-authority/24UE,BALANCE SHEET,BS,BAL. SHEET - H.R.A.,BS1,BAL. SHEET - H.R.A.,BALANCES & RESERVES,BS190,Unclassified,,RECHARGE WRK SUSP. - INS.,E614,28/05/2021,713301,"3,802.83",Balance Sheet,SC ARCHITECTURE,
Fareham Borough Council,http://statistics.data.gov.uk/id/local-authority/24UE,ENVIRONMENT AND REGULATORY SER,BV03,WASTE COLLECTION,BV03G,STREETSCENE,TRANSPORT RELATED EXPENDITURE,3,Vehicle Management,38,HIRE OF VEHICLES,3210,27/05/2021,713336,865.55,Revenue,ENTERPRISE FLEX-E-RENT,2946689
Fareham Borough Council,http://statistics.data.gov.uk/id/local-authority/24UE,ENVIRONMENT AND REGULATORY SER,BV03,WASTE COLLECTION,BV03G,STREETSCENE,TRANSPORT RELATED EXPENDITURE,3,Vehicle Management,38,HIRE OF VEHICLES,3210,27/05/2021,713336,865.55,Revenue,ENTERPRISE FLEX-E-RENT,2946689
Fareham Borough Council,http://statistics.data.gov.uk/id/local-authority/24UE,ENVIRONMENT AND REGULATORY SER,BV03,WASTE COLLECTION,BV03G,STREETSCENE,TRANSPORT RELATED EXPENDITURE,3,Vehicle Management,38,HIRE OF VEHICLES,3210,27/05/2021,713340,597.34,Revenue,ENTERPRISE FLEX-E-RENT,2946689
Fareham Borough Council,http://statistics.data.gov.uk/id/local-authority/24UE,CAPITAL PROGRAMME - HOUSING SERVICES,CP,RENOVATION OF L.A. DWELLINGS,CP10,CAPITAL - FAREHAM HOUSING CAPITAL,PREMISES RELATED EXPENDITURE,2,Social Community Care Supplies & Services,32,R & M OF BUILDINGS,2000,28/05/2021,713359,"1,641.07",Capital,HAMPSHIRE MOBILITY SERVICES LIMITED,08140218
Fareham Borough Council,http://statistics.data.gov.uk/id/local-authority/24UE,GENERAL FUND HOUSING,BV05,HOUSING ADVICE,BV05C,DEPT OF DEPUTY CHIEF EXECUTIVE,SUPPLIES & SERVICES,4,Facilities & Management Services,19,EXTERNAL PRINTING,4310,28/05/2021,713362,527.81,Revenue,CFH DOCMAIL LIMITED,07168911
Fareham Borough Council,http://statistics.data.gov.uk/id/local-authority/24UE,ENVIRONMENT AND REGULATORY SER,BV03,STREET CLEANSING,BV03F,STREETSCENE,SUPPLIES & SERVICES,4,Social Community Care Supplies & Services,32,MATERIALS (OPERATIONAL),4007,28/05/2021,713363,"1,562.00",Revenue,THE HELPING HAND COMPANY (LEDBURY) LTD,02172956
Fareham Borough Council,http://statistics.data.gov.uk/id/local-authority/24UE,CAPITAL PROGRAMME - HOUSING SERVICES,CP,RENOVATION OF L.A. DWELLINGS,CP10,CAPITAL - FAREHAM HOUSING CAPITAL,PREMISES RELATED EXPENDITURE,2,Building Construction Materials,10,R & M OF BUILDINGS,2000,28/05/2021,713364,850.00,Capital,IDEAL WINDOW SOLUTIONS LIMITED,3623785
Fareham Borough Council,http://statistics.data.gov.uk/id/local-authority/24UE,CAPITAL PROGRAMME - HOUSING SERVICES,CP,RENOVATION OF L.A. DWELLINGS,CP10,CAPITAL - FAREHAM HOUSING CAPITAL,PREMISES RELATED EXPENDITURE,2,Building Construction Materials,10,R & M OF BUILDINGS,2000,28/05/2021,713365,560.00,Capital,IDEAL WINDOW SOLUTIONS LIMITED,3623785
Fareham Borough Council,http://statistics.data.gov.uk/id/local-authority/24UE,HIGHWAYS ROADS AND TRANSPORT,BV12,PARKING SERVICES,BV12D,DEPT OF LEISURE & COMMUNITY,SUPPLIES & SERVICES,4,Street & Traffic Management,35,FURNITURE & EQUIPT. PURCHASES,4000,28/05/2021,713366,"102,582.92",Revenue,DESIGNA UK LTD,03464488
Fareham Borough Council,http://statistics.data.gov.uk/id/local-authority/24UE,HOUSING REVENUE ACCOUNT,BV06,RESPONSIVE & VOID MAINTENANCE,5901,DEPT OF DEPUTY CHIEF EXECUTIVE,PREMISES RELATED EXPENDITURE,2,Building Construction Materials,10,GENERAL REPAIRS,2018,28/05/2021,713367,"1,633.25",Revenue,CADE ROOFING & BUILDING SERVICES LTD,02795780
Fareham Borough Council,http://statistics.data.gov.uk/id/local-authority/24UE,OTHER REVENUE ACCOUNTS,RV,NON WORK GROUP HOLDING ACCOUNT,RV18,DEPT of STRATEGIC PLANNING and ENVIRONMENT,SUPPLIES & SERVICES,4,"Works - Construction, Repair & Maintenance",39,MATERIALS (OPERATIONAL),4007,28/05/2021,713368,580.00,Revenue,A PURKISS BUILDING & DECORATING LTD,3561215
Fareham Borough Council,http://statistics.data.gov.uk/id/local-authority/24UE,HOUSING REVENUE ACCOUNT,BV06,RESPONSIVE & VOID MAINTENANCE,5901,DEPT OF DEPUTY CHIEF EXECUTIVE,PREMISES RELATED EXPENDITURE,2,Building Construction Materials,10,GENERAL REPAIRS,2018,28/05/2021,713374,"1,764.40",Revenue,BAKES ROOFING LTD,4579948
Fareham Borough Council,http://statistics.data.gov.uk/id/local-authority/24UE,CAPITAL PROGRAMME - HOUSING SERVICES,CP,RENOVATION OF L.A. DWELLINGS,CP10,CAPITAL - FAREHAM HOUSING CAPITAL,PREMISES RELATED EXPENDITURE,2,Building Construction Materials,10,R & M OF BUILDINGS,2000,28/05/2021,713375,"1,250.00",Capital,IDEAL WINDOW SOLUTIONS LIMITED,3623785
Fareham Borough Council,http://statistics.data.gov.uk/id/local-authority/24UE,GENERAL FUND HOUSING,BV05,HOUSING ADVICE,BV05C,DEPT OF DEPUTY CHIEF EXECUTIVE,EMPLOYEES RELATED EXPENDITURE,1,Human Resources,26,AGENCY WORKERS,1050,28/05/2021,713376,"1,110.00",Revenue,G2 RECRUITMENT SOLUTIONS (G2V),08067630
Fareham Borough Council,http://statistics.data.gov.uk/id/local-authority/24UE,GENERAL FUND HOUSING,BV05,HOUSING ADVICE,BV05C,DEPT OF DEPUTY CHIEF EXECUTIVE,EMPLOYEES RELATED EXPENDITURE,1,Human Resources,26,AGENCY WORKERS,1050,28/05/2021,713377,"1,065.00",Revenue,G2 RECRUITMENT SOLUTIONS (G2V),08067630
Fareham Borough Council,http://statistics.data.gov.uk/id/local-authority/24UE,GENERAL FUND HOUSING,BV05,HOUSING ADVICE,BV05C,DEPT OF DEPUTY CHIEF EXECUTIVE,EMPLOYEES RELATED EXPENDITURE,1,Human Resources,26,AGENCY WORKERS,1050,28/05/2021,713378,"1,419.00",Revenue,G2 RECRUITMENT SOLUTIONS (G2V),08067630
Fareham Borough Council,http://statistics.data.gov.uk/id/local-authority/24UE,CAPITAL PROGRAMME - HOUSING SERVICES,CP,RENOVATION OF L.A. DWELLINGS,CP10,CAPITAL - FAREHAM HOUSING CAPITAL,PREMISES RELATED EXPENDITURE,2,"Works - Construction, Repair & Maintenance",39,VOID COSTS - NOT RECHARGEABLE,2011,28/05/2021,713379,"6,426.35",Capital,MOUNTJOY LTD,06009150
Fareham Borough Council,http://statistics.data.gov.uk/id/local-authority/24UE,HOUSING REVENUE ACCOUNT,BV06,RESPONSIVE & VOID MAINTENANCE,5901,DEPT OF DEPUTY CHIEF EXECUTIVE,PREMISES RELATED EXPENDITURE,2,"Works - Construction, Repair & Maintenance",39,VOID COSTS - NOT RECHARGEABLE,2011,28/05/2021,713379,"1,004.58",Revenue,MOUNTJOY LTD,06009150
Fareham Borough Council,http://statistics.data.gov.uk/id/local-authority/24UE,ENVIRONMENT AND REGULATORY SER,BV03,ENVIRONMENTAL HEALTH,BV03C,DEPT OF LEISURE & COMMUNITY,SUPPLIES & SERVICES,4,"Works - Construction, Repair & Maintenance",39,HEALTH & SAFETY EXPENSES,4941,28/05/2021,713383,50.00,Revenue,P R D ELECTRICAL LTD,9846111
Fareham Borough Council,http://statistics.data.gov.uk/id/local-authority/24UE,HIGHWAYS ROADS AND TRANSPORT,BV12,PARKING SERVICES,BV12D,DEPT OF LEISURE & COMMUNITY,PREMISES RELATED EXPENDITURE,2,"Works - Construction, Repair & Maintenance",39,GENERAL REPAIRS,2018,28/05/2021,713383,47.85,Revenue,P R D ELECTRICAL LTD,9846111
Fareham Borough Council,http://statistics.data.gov.uk/id/local-authority/24UE,ENVIRONMENT AND REGULATORY SER,BV03,ENVIRONMENTAL HEALTH,BV03C,STREETSCENE,PREMISES RELATED EXPENDITURE,2,"Works - Construction, Repair & Maintenance",39,GENERAL REPAIRS,2018,28/05/2021,713383,50.00,Revenue,P R D ELECTRICAL LTD,9846111
Fareham Borough Council,http://statistics.data.gov.uk/id/local-authority/24UE,HOUSING REVENUE ACCOUNT,BV06,RESPONSIVE & VOID MAINTENANCE,5901,DEPT OF DEPUTY CHIEF EXECUTIVE,PREMISES RELATED EXPENDITURE,2,"Works - Construction, Repair & Maintenance",39,GENERAL REPAIRS,2018,28/05/2021,713383,"7,374.19",Revenue,P R D ELECTRICAL LTD,9846111
Fareham Borough Council,http://statistics.data.gov.uk/id/local-authority/24UE,HOUSING REVENUE ACCOUNT,BV06,RESPONSIVE & VOID MAINTENANCE,5901,DEPT OF DEPUTY CHIEF EXECUTIVE,PREMISES RELATED EXPENDITURE,2,"Works - Construction, Repair & Maintenance",39,VOID COSTS - NOT RECHARGEABLE,2011,28/05/2021,713383,709.42,Revenue,P R D ELECTRICAL LTD,9846111
Fareham Borough Council,http://statistics.data.gov.uk/id/local-authority/24UE,OTHER REVENUE ACCOUNTS,RV,CONTRACT SERVICES D.S.O.,RV14,DEPT OF DEPUTY CHIEF EXECUTIVE,EMPLOYEES RELATED EXPENDITURE,1,"Works - Construction, Repair & Maintenance",39,STANDBY ALLOWANCES,1087,28/05/2021,713383,"1,200.00",Revenue,P R D ELECTRICAL LTD,9846111
Fareham Borough Council,http://statistics.data.gov.uk/id/local-authority/24UE,OTHER REVENUE ACCOUNTS,RV,NON WORK GROUP HOLDING ACCOUNT,RV18,DEPT of STRATEGIC PLANNING and ENVIRONMENT,PREMISES RELATED EXPENDITURE,2,"Works - Construction, Repair & Maintenance",39,GENERAL REPAIRS,2018,28/05/2021,713383,28.57,Revenue,P R D ELECTRICAL LTD,9846111
Fareham Borough Council,http://statistics.data.gov.uk/id/local-authority/24UE,OTHER REVENUE ACCOUNTS,RV,CONTRACT SERVICES D.S.O.,RV14,DEPT OF DEPUTY CHIEF EXECUTIVE,EMPLOYEES RELATED EXPENDITURE,1,Human Resources,26,AGENCY WORKERS,1050,28/05/2021,713439,579.13,Revenue,INTERACTION RECRUITMENT PLC,2408326
Fareham Borough Council,http://statistics.data.gov.uk/id/local-authority/24UE,OTHER REVENUE ACCOUNTS,RV,CONTRACT SERVICES D.S.O.,RV14,DEPT of STRATEGIC PLANNING and ENVIRONMENT,SUPPLIES & SERVICES,4,Consultancy,15,GRANTS AND SUBSCRIPTIONS,4700,28/05/2021,713441,"1,025.00",Revenue,BSI MANAGEMENT SYSTEMS,07805321
Fareham Borough Council,http://statistics.data.gov.uk/id/local-authority/24UE,OTHER REVENUE ACCOUNTS,RV,NON WORK GROUP HOLDING ACCOUNT,RV18,DEPT of STRATEGIC PLANNING and ENVIRONMENT,PREMISES RELATED EXPENDITURE,2,Utilities,37,ELECTRICITY,2120,14/05/2021,713445,"6,819.40",Revenue,EDF ENERGY,02366852
Fareham Borough Council,http://statistics.data.gov.uk/id/local-authority/24UE,GENERAL FUND HOUSING,BV05,HOUSING ADVICE,BV05C,DEPT OF DEPUTY CHIEF EXECUTIVE,SUPPLIES & SERVICES,4,Social Community Care Supplies & Services,32,GRANTS AND SUBSCRIPTIONS,4700,28/05/2021,713449,"14,462.50",Revenue,TWO SAINTS LTD,IP26511R
Fareham Borough Council,http://statistics.data.gov.uk/id/local-authority/24UE,HIGHWAYS ROADS AND TRANSPORT,BV12,PARKING SERVICES,BV12D,DEPT OF LEISURE & COMMUNITY,SUPPLIES & SERVICES,4,Street & Traffic Management,35,FURNITURE & EQUIPT. MAINT.,4030,28/05/2021,713450,825.00,Revenue,PLANET - 3C PAYMENT,3257901
Fareham Borough Council,http://statistics.data.gov.uk/id/local-authority/24UE,HIGHWAYS ROADS AND TRANSPORT,BV12,PARKING SERVICES,BV12D,DEPT OF LEISURE & COMMUNITY,SUPPLIES & SERVICES,4,Street & Traffic Management,35,FURNITURE & EQUIPT. MAINT.,4030,28/05/2021,713450,750.00,Revenue,PLANET - 3C PAYMENT,3257901
Fareham Borough Council,http://statistics.data.gov.uk/id/local-authority/24UE,PLANNING SERVICES,BV13,DEVELOPMENT CONTROL,BV13B,DEPT of STRATEGIC PLANNING and ENVIRONMENT,PREMISES RELATED EXPENDITURE,2,Horticultural,24,R&M OF TREE PRESERVATION,2063,28/05/2021,713451,"2,030.00",Revenue,TITCHFIELD TREE SERVICES LTD,9011233
Fareham Borough Council,http://statistics.data.gov.uk/id/local-authority/24UE,CULTURAL AND RELATED SERVICES,BV09,RECREATION AND SPORT,BV09B,STREETSCENE,SUPPLIES & SERVICES,4,Environmental Services,18,SUB-CONTRACTORS CHARGES,4432,28/05/2021,713452,975.00,Revenue,L&S WASTE MANAGEMENT LTD,03475329
Fareham Borough Council,http://statistics.data.gov.uk/id/local-authority/24UE,OTHER REVENUE ACCOUNTS,RV,NON WORK GROUP HOLDING ACCOUNT,RV18,DEPT OF LEISURE & COMMUNITY,SUPPLIES & SERVICES,4,Mail Services�,30,POSTAGES,4500,28/05/2021,713477,"3,127.48",Revenue,ROYAL MAIL,04138203